Body Name,Body,Service Level,Expense Type,Expense Code,Narrative,Date,Transaction Number,Amount,Capital and Revenue,Supplier Name,Supplier ID
South Ribble Borough Council,http://statistics.data.gov.uk/id/local-authority/30UE,CDIG-Customer and Digital,External Contractors Charges,4570,"Drainage Improvements, Site 1, Middleforth Green, Penwortham, as per quote dated 10/05/2022",23/09/2022,0000481440,"11,340.00",Revenue,A & G Landscapes & Groundworks LTD,0
South Ribble Borough Council,http://statistics.data.gov.uk/id/local-authority/30UE,CDIG-Customer and Digital,External Contractors Charges,4570,LABOUR,23/09/2022,0000481440,"2,500.00",Revenue,A & G Landscapes & Groundworks LTD,0
South Ribble Borough Council,http://statistics.data.gov.uk/id/local-authority/30UE,CDIG-Customer and Digital,Materials General,4040,2 x calipers  1 set brake pads VO65 KPZ JFC18894,16/09/2022,0000481399,637.99,Revenue,A & P Truck & Trailer Parts,0
South Ribble Borough Council,http://statistics.data.gov.uk/id/local-authority/30UE,COMP-Commercial and Property,Planned Annual Repair & Maintenance,2021,HURST GRANGE PARK 2022/2023 as per NAME REDACTED  Window cleaning Internal / External 2 monthly ,30/09/2022,0000481953,597.00,Revenue,A 2 Clean Ltd,0
South Ribble Borough Council,http://statistics.data.gov.uk/id/local-authority/30UE,COMU-Communities,Capital Grant,C570,"DFG WORKS AT ADDRESS REDACTED- GRANT TO COVER COST OF RAMP, THROUGHFLOOR LIFT AND LAS EQUIVALENT ",16/09/2022,0000481640,"6,762.45",Revenue,A FULLER SERVICES,0
South Ribble Borough Council,http://statistics.data.gov.uk/id/local-authority/30UE,CDIG-Customer and Digital,Agency Staff,1121,Depot Cleaner NAME REDACTED - 15th August - 19th August 4 hours a day ,30/09/2022,0000481145,264.00,Revenue,ACE PERSONNEL,0
South Ribble Borough Council,http://statistics.data.gov.uk/id/local-authority/30UE,CDIG-Customer and Digital,Stand-By Allowance,1125,NAME REDACTED - w/c 8.8.22,02/09/2022,0000481146,474.38,Revenue,ACE PERSONNEL,0
South Ribble Borough Council,http://statistics.data.gov.uk/id/local-authority/30UE,CDIG-Customer and Digital,Agency Staff,1121,Depot Cleaner NAME REDACTED- 8th August - 12th August,02/09/2022,0000481273,264.00,Revenue,ACE PERSONNEL,0
South Ribble Borough Council,http://statistics.data.gov.uk/id/local-authority/30UE,GOVE-Governance,Miscellaneous Expenses,4851,"To provide AV equipment (speakers, mics, hand held mic, technician and carriage)",30/09/2022,0000481860,457.00,Revenue,ACTIVE AV LTD,0
South Ribble Borough Council,http://statistics.data.gov.uk/id/local-authority/30UE,POLY-Policy,Operational Equip & Tools,4010,"2,500L Fuel for MITP for delivery 1 June 2022 As per email from NAME REDACTED",30/09/2022,0000481954,"4,197.44",Revenue,Adlington Welding Supplies Ltd,0
South Ribble Borough Council,http://statistics.data.gov.uk/id/local-authority/30UE,CDIG-Customer and Digital,External Contractors Charges,4570,Spec Repair JFC 18851 YD19 AUM,02/09/2022,0000481114,296.00,Revenue,Alan Edwards (Edwards Technical),0
South Ribble Borough Council,http://statistics.data.gov.uk/id/local-authority/30UE,CDIG-Customer and Digital,Materials General,4040,Body Control Screen & Programming YD19 AUM JFC18851,16/09/2022,0000481294,"1,680.00",Revenue,Alan Edwards (Edwards Technical),0
South Ribble Borough Council,http://statistics.data.gov.uk/id/local-authority/30UE,CDIG-Customer and Digital,Bank Charges,4811,post office,09/09/2022,0000481379,502.78,Revenue,ALLPAY LTD,0
South Ribble Borough Council,http://statistics.data.gov.uk/id/local-authority/30UE,CDIG-Customer and Digital,Bank Charges,4811,paypoint,09/09/2022,0000481379,63.23,Revenue,ALLPAY LTD,0
South Ribble Borough Council,http://statistics.data.gov.uk/id/local-authority/30UE,CDIG-Customer and Digital,Bank Charges,4811,web,09/09/2022,0000481379,46.00,Revenue,ALLPAY LTD,0
South Ribble Borough Council,http://statistics.data.gov.uk/id/local-authority/30UE,CDIG-Customer and Digital,Agency Staff,1121,Agency Staff w/e 21/08/2022,16/09/2022,0000481350,"10,009.00",Revenue,ALS Managed Services Ltd,0
South Ribble Borough Council,http://statistics.data.gov.uk/id/local-authority/30UE,CDIG-Customer and Digital,Agency Staff,1121,Agency Staff w/e 28/08/2022,16/09/2022,0000481391,"6,922.44",Revenue,ALS Managed Services Ltd,0
South Ribble Borough Council,http://statistics.data.gov.uk/id/local-authority/30UE,CDIG-Customer and Digital,Agency Staff,1121,Agency Staff w/e 04/09/2022,23/09/2022,0000481740,"9,826.69",Revenue,ALS Managed Services Ltd,0
South Ribble Borough Council,http://statistics.data.gov.uk/id/local-authority/30UE,COMP-Commercial and Property,Water Charges(Metered),2511,7/8 to 6/9/22,30/09/2022,0000481923,328.63,Revenue,Anglian Water Business (National) t/as Wave Utilit,0
South Ribble Borough Council,http://statistics.data.gov.uk/id/local-authority/30UE,COMP-Commercial and Property,Water Charges(Metered),2511,7/8 6/9/22,30/09/2022,0000481924,885.97,Revenue,Anglian Water Business (National) t/as Wave Utilit,0
South Ribble Borough Council,http://statistics.data.gov.uk/id/local-authority/30UE,COMP-Commercial and Property,Water Charges(Metered),2511,7/8 t 6/9/22,30/09/2022,0000481925,762.52,Revenue,Anglian Water Business (National) t/as Wave Utilit,0
South Ribble Borough Council,http://statistics.data.gov.uk/id/local-authority/30UE,COMP-Commercial and Property,Water Charges(Metered),2511,7/8 to 6/9/22,30/09/2022,0000481926,928.07,Revenue,Anglian Water Business (National) t/as Wave Utilit,0
South Ribble Borough Council,http://statistics.data.gov.uk/id/local-authority/30UE,COMU-Communities,Capital Grant,C570,DFG WORK FOR ADAPTATION FOR LEVEL ACCESS BATHROOM  AT ADDRESS REDACTED AS PER SRBC AND QUOTE SUPPLIED,23/09/2022,0000481783,"5,174.14",Revenue,APG DOMESTIC SERVICES,0
South Ribble Borough Council,http://statistics.data.gov.uk/id/local-authority/30UE,COMP-Commercial and Property,Operational Equip & Tools,4010,repair of vehicle following damage as per NAME REDACTED,09/09/2022,0000481371,729.27,Revenue,ARNOLD CLARK CAR & VAN RENTAL,0
South Ribble Borough Council,http://statistics.data.gov.uk/id/local-authority/30UE,COMU-Communities,Publicity & Promotion,4842,Buffet for Cost of living conference,23/09/2022,0000481493,360.00,Revenue,Artisan Deli Limited,0
South Ribble Borough Council,http://statistics.data.gov.uk/id/local-authority/30UE,POLY-Policy,Public Relations Strategy,4848,Account set up for Discover SR and Template,02/09/2022,0000480630,299.00,Revenue,ATTAIN GROUP LIMITED,0
South Ribble Borough Council,http://statistics.data.gov.uk/id/local-authority/30UE,CDIG-Customer and Digital,Materials General,4040,4.5m Coco Liner,30/09/2022,0000482027,26.22,Revenue,Avant Gardens Ltd,0
South Ribble Borough Council,http://statistics.data.gov.uk/id/local-authority/30UE,CDIG-Customer and Digital,Cap Contract Payment,C230,4 x Granito Egg Pot ,30/09/2022,0000482027,166.63,Revenue,Avant Gardens Ltd,0
South Ribble Borough Council,http://statistics.data.gov.uk/id/local-authority/30UE,CDIG-Customer and Digital,Cap Contract Payment,C230,6 x Granito Egg Pot ,30/09/2022,0000482027,174.95,Revenue,Avant Gardens Ltd,0
South Ribble Borough Council,http://statistics.data.gov.uk/id/local-authority/30UE,CDIG-Customer and Digital,Cap Contract Payment,C230,6 x Granito Black Egg Pot ,30/09/2022,0000482027,249.95,Revenue,Avant Gardens Ltd,0
South Ribble Borough Council,http://statistics.data.gov.uk/id/local-authority/30UE,CDIG-Customer and Digital,Materials General,4040,2000 Parking Permit Scratchcards,02/09/2022,0000481148,632.00,Revenue,B & D PRINT SERVICES LTD,0
South Ribble Borough Council,http://statistics.data.gov.uk/id/local-authority/30UE,COMU-Communities,Publicity & Promotion,4842,Installation of additional Electrical Feeder Pillar for CCTV at Leyland Roundabout,23/09/2022,0000480792,300.00,Revenue,BELEC ELECTRICAL LTD,0
South Ribble Borough Council,http://statistics.data.gov.uk/id/local-authority/30UE,COMU-Communities,Core Fund,4861,St Aidans church container work - Electrical,23/09/2022,0000480911,"1,119.50",Revenue,BELEC ELECTRICAL LTD,0
South Ribble Borough Council,http://statistics.data.gov.uk/id/local-authority/30UE,COMP-Commercial and Property,Planned Annual Repair & Maintenance,2021,Install emergency lights in disabled toilets at Withy Grove & Tardy Gate,16/09/2022,0000481597,366.67,Revenue,BELEC ELECTRICAL LTD,0
South Ribble Borough Council,http://statistics.data.gov.uk/id/local-authority/30UE,COMP-Commercial and Property,Planned Annual Repair & Maintenance,2021,Brickcroft - Install emergency light in disabled toilet & check emergency light coverage.,16/09/2022,0000481597,366.67,Revenue,BELEC ELECTRICAL LTD,0
South Ribble Borough Council,http://statistics.data.gov.uk/id/local-authority/30UE,COMP-Commercial and Property,Intruder Alarm,2035,Install 2x screamer alarms at Moss Side Pavillion - 1 each end of Pavillion & interlinked for dual operation.,16/09/2022,0000481597,366.66,Revenue,BELEC ELECTRICAL LTD,0
South Ribble Borough Council,http://statistics.data.gov.uk/id/local-authority/30UE,CDIG-Customer and Digital,Operational Equip & Tools,4010,Acetylene 50L Size L,02/09/2022,0000481191,159.99,Revenue,BOC GASES,0
South Ribble Borough Council,http://statistics.data.gov.uk/id/local-authority/30UE,CDIG-Customer and Digital,Operational Equip & Tools,4010,Env & energy Charge,02/09/2022,0000481191,1.22,Revenue,BOC GASES,0
South Ribble Borough Council,http://statistics.data.gov.uk/id/local-authority/30UE,CDIG-Customer and Digital,Operational Equip & Tools,4010,Argoshield Light Size W,02/09/2022,0000481191,71.99,Revenue,BOC GASES,0
South Ribble Borough Council,http://statistics.data.gov.uk/id/local-authority/30UE,CDIG-Customer and Digital,Operational Equip & Tools,4010,Env & Energy Surcharge,02/09/2022,0000481191,1.82,Revenue,BOC GASES,0
South Ribble Borough Council,http://statistics.data.gov.uk/id/local-authority/30UE,CDIG-Customer and Digital,Operational Equip & Tools,4010,Fixed Charges,02/09/2022,0000481191,10.00,Revenue,BOC GASES,0
South Ribble Borough Council,http://statistics.data.gov.uk/id/local-authority/30UE,CDIG-Customer and Digital,Operational Equip & Tools,4010,Non Direct Debit Account Fee,02/09/2022,0000481191,5.00,Revenue,BOC GASES,0
South Ribble Borough Council,http://statistics.data.gov.uk/id/local-authority/30UE,COMU-Communities,Professional Fees,4510,Activity provider for HAF camps for week 1 and 2.  2-12 August 2022,02/09/2022,0000481206,"5,760.00",Revenue,Box Clever CIC,0
South Ribble Borough Council,http://statistics.data.gov.uk/id/local-authority/30UE,COMU-Communities,Professional Fees,4510,Activity provider for HAF camps. Week 3 and 4 16-26 August 2022,16/09/2022,0000481467,"5,760.00",Revenue,Box Clever CIC,0
South Ribble Borough Council,http://statistics.data.gov.uk/id/local-authority/30UE,COMP-Commercial and Property,Planned Annual Repair & Maintenance,2021,outstanding utilities as per Judge and Priestley letter ,23/09/2022,0000481795,375.92,Revenue,BRITISH GAS SERVICES (COMMERCIAL) LTD,0
South Ribble Borough Council,http://statistics.data.gov.uk/id/local-authority/30UE,COMP-Commercial and Property,Planned Annual Repair & Maintenance,2021,outstanding utilities as per Judge and Priestley letter ,23/09/2022,0000481797,819.94,Revenue,BRITISH GAS SERVICES (COMMERCIAL) LTD,0
South Ribble Borough Council,http://statistics.data.gov.uk/id/local-authority/30UE,COMP-Commercial and Property,Planned Annual Repair & Maintenance,2021,outstanding utilities as per Judge and Priestley letter ,23/09/2022,0000481798,413.03,Revenue,BRITISH GAS SERVICES (COMMERCIAL) LTD,0
South Ribble Borough Council,http://statistics.data.gov.uk/id/local-authority/30UE,COMP-Commercial and Property,Planned Annual Repair & Maintenance,2021,outstanding utilities as per Judge and Priestley letter ,23/09/2022,0000481799,267.14,Revenue,BRITISH GAS SERVICES (COMMERCIAL) LTD,0
South Ribble Borough Council,http://statistics.data.gov.uk/id/local-authority/30UE,COMP-Commercial and Property,Planned Annual Repair & Maintenance,2021,outstanding utilities as per Judge and Priestley letter ,23/09/2022,0000481800,413.03,Revenue,BRITISH GAS SERVICES (COMMERCIAL) LTD,0
South Ribble Borough Council,http://statistics.data.gov.uk/id/local-authority/30UE,CDIG-Customer and Digital,Telephones-Rental,4261,charges,23/09/2022,0000481792,214.47,Revenue,BRITISH TELECOMMUNICATIONS PLC,0
South Ribble Borough Council,http://statistics.data.gov.uk/id/local-authority/30UE,CDIG-Customer and Digital,Telephones-Rental,4261,calls,23/09/2022,0000481792,1.02,Revenue,BRITISH TELECOMMUNICATIONS PLC,0
South Ribble Borough Council,http://statistics.data.gov.uk/id/local-authority/30UE,CDIG-Customer and Digital,Telephones-Rental,4261,late fee,23/09/2022,0000481792,40.00,Revenue,BRITISH TELECOMMUNICATIONS PLC,0
South Ribble Borough Council,http://statistics.data.gov.uk/id/local-authority/30UE,COMU-Communities,Materials General,4040,Supply of lunches for HAF Programme between Monday 25th July and Thursday 18th August.,23/09/2022,0000481748,"5,262.40",Revenue,BROTHERS OF CHARITY SERVICES,0
South Ribble Borough Council,http://statistics.data.gov.uk/id/local-authority/30UE,CDIG-Customer and Digital,Operational Equip & Tools,4010,1 x Broxap�s Derby Slim Litter Bin Logos: Details: �Dog Waste Accepted� Logo in Gold,02/09/2022,0000481149,373.00,Revenue,BROXAP LTD,0
South Ribble Borough Council,http://statistics.data.gov.uk/id/local-authority/30UE,CDIG-Customer and Digital,Materials General,4040,1XWide angle mirror 2X rear castor wheels 2X front castor wheels 1X filter kit GX19 DZF JFC 18578,23/09/2022,0000481646,435.46,Revenue,Bucher Municipal Ltd,0
South Ribble Borough Council,http://statistics.data.gov.uk/id/local-authority/30UE,CDIG-Customer and Digital,Materials General,4040,1x water pump 3x 90 degree fittings GX19 DZF JFC 18578,23/09/2022,0000481820,309.60,Revenue,Bucher Municipal Ltd,0
South Ribble Borough Council,http://statistics.data.gov.uk/id/local-authority/30UE,CDIG-Customer and Digital,Hiring Expenses,3212,Hire of 26T RCV refuse collection vehicle to cover repairs 01.08.22 to 23.08.22,16/09/2022,0000481621,"4,140.00",Revenue,C P DAVIDSON & SONS LTD,0
South Ribble Borough Council,http://statistics.data.gov.uk/id/local-authority/30UE,CDIG-Customer and Digital,Hiring Expenses,3212,Hire of refuse collection vehicle to cover repairs 01.09.22 to 14.09.22,30/09/2022,0000482026,"1,800.00",Revenue,C P DAVIDSON & SONS LTD,0
South Ribble Borough Council,http://statistics.data.gov.uk/id/local-authority/30UE,CDIG-Customer and Digital,Software Licensing,4243,Extension of Transitional Relief and Supporting Small Business Relief for small and medium properties.,02/09/2022,0000481283,"2,227.00",Revenue,CAPITA BUSINESS SERVICES LTD,0
South Ribble Borough Council,http://statistics.data.gov.uk/id/local-authority/30UE,PDEV-Planning and Development,Agency Staff,1121,Planning consultant to deal with Cuerdale Garden Village application.,23/09/2022,0000481443,"4,370.00",Revenue,CAPITA PROPERTY AND INFRASTRUCTURE LTD,0
South Ribble Borough Council,http://statistics.data.gov.uk/id/local-authority/30UE,CDIG-Customer and Digital,Agency Staff,1121,EXTERNAL SUPPORT FOR BENEFITS (TRANCHE 2),16/09/2022,0000481556,"4,072.53",Revenue,CAPITA RESOURCING LTD,0
South Ribble Borough Council,http://statistics.data.gov.uk/id/local-authority/30UE,CDIG-Customer and Digital,Agency Staff,1121,REVENUES EXTERNAL SUPPORT REVENUES TRANCHE 2,16/09/2022,0000481557,"5,846.30",Revenue,CAPITA RESOURCING LTD,0
South Ribble Borough Council,http://statistics.data.gov.uk/id/local-authority/30UE,COMU-Communities,Capital Grant,C570,DFG WORKS FOR EQUIPMENT-COMPACT BACKWASH UNIT BLAK FRAME WHITE BASIN- FOR ADDRESS REDACTED,16/09/2022,0000481648,"1,162.80",Revenue,Capital Hair and Beauty Ltd,0
South Ribble Borough Council,http://statistics.data.gov.uk/id/local-authority/30UE,COMP-Commercial and Property,Licences Fee General,488B,mgmt fees,02/09/2022,0000481291,"1,125.00",Revenue,Carr Street Community Centre,0
South Ribble Borough Council,http://statistics.data.gov.uk/id/local-authority/30UE,COMU-Communities,Professional Fees,4510,Emergency First Aid for Sports Course,16/09/2022,0000481554,675.00,Revenue,Centaur Training Services (North West) Ltd,0
South Ribble Borough Council,http://statistics.data.gov.uk/id/local-authority/30UE,COMU-Communities,Materials General,4040,To supply goods for refugee property - ADDRESS REDACTED,23/09/2022,0000481649,"1,080.12",Revenue,CENTRAL LANCASHIRE AGE CONCERN LTD,0
South Ribble Borough Council,http://statistics.data.gov.uk/id/local-authority/30UE,POLY-Policy,College Course,1403,1 X CORE MODULE FEE - NAME REDACTED,30/09/2022,0000480854,203.44,Revenue,Chartered Insurance Institute,0
South Ribble Borough Council,http://statistics.data.gov.uk/id/local-authority/30UE,POLY-Policy,Individual Subs Prof. Bodies,1741,vat item,30/09/2022,0000480854,47.97,Revenue,Chartered Insurance Institute,0
South Ribble Borough Council,http://statistics.data.gov.uk/id/local-authority/30UE,POLY-Policy,Individual Subs Prof. Bodies,1741,exempt item,30/09/2022,0000480854,60.00,Revenue,Chartered Insurance Institute,0
South Ribble Borough Council,http://statistics.data.gov.uk/id/local-authority/30UE,CDIG-Customer and Digital,Processing Centre Charges,4516,Notice processing services- back office - January 2022,30/09/2022,0000481986,290.94,Revenue,Chipside Ltd,0
South Ribble Borough Council,http://statistics.data.gov.uk/id/local-authority/30UE,CDIG-Customer and Digital,Processing Centre Charges,4516,Notice processing services- back office -December 2021,30/09/2022,0000481989,256.86,Revenue,Chipside Ltd,0
South Ribble Borough Council,http://statistics.data.gov.uk/id/local-authority/30UE,CDIG-Customer and Digital,Processing Centre Charges,4516,DVLA New client set up fee,30/09/2022,0000482003,371.20,Revenue,Chipside Ltd,0
South Ribble Borough Council,http://statistics.data.gov.uk/id/local-authority/30UE,COMU-Communities,Temporary Accommodation,5311,Flat 5 rent for NAME REDACTED,16/09/2022,0000481401,997.90,Revenue,CHORLEY BOROUGH COUNCIL,0
South Ribble Borough Council,http://statistics.data.gov.uk/id/local-authority/30UE,COMU-Communities,Contributions to Other Bodies,4730,Chorley Council � security provision at Cotswold House 20/12/21  to 31/3/2022,23/09/2022,0000481837,"6,525.40",Revenue,CHORLEY BOROUGH COUNCIL,0
South Ribble Borough Council,http://statistics.data.gov.uk/id/local-authority/30UE,PDEV-Planning and Development,Consultancy Fees,4541,Consultancy advice re Penwortham Residential Park - unauthorised tree works,23/09/2022,0000481751,500.00,Revenue,Christopher Binney Consultant,0
South Ribble Borough Council,http://statistics.data.gov.uk/id/local-authority/30UE,COMP-Commercial and Property,Intruder Alarm,2035,match off against credit424634,02/09/2022,0000479222,"2,924.03",Revenue,CHUBB LTD,0
South Ribble Borough Council,http://statistics.data.gov.uk/id/local-authority/30UE,COMU-Communities,Contributions to Other Bodies,4730,"Licence, Support and Maintenance For the Period : 01/10/2022 to 30/09/2023 Hosting fee - HOM",09/09/2022,0000481495,"1,091.73",Revenue,CIVICA UK LTD,0
South Ribble Borough Council,http://statistics.data.gov.uk/id/local-authority/30UE,COMU-Communities,Contributions to Other Bodies,4730,"Licence, Support and Maintenance For the Period : 01/10/2022 to 30/09/2023 Partner Support Plan - HOM",09/09/2022,0000481495,"3,821.74",Revenue,CIVICA UK LTD,0
South Ribble Borough Council,http://statistics.data.gov.uk/id/local-authority/30UE,CDIG-Customer and Digital,Software Licensing,4243,Additional Annual charge to South Ribble for exceeding the Data Storage & Recovery quota,30/09/2022,0000481940,"2,656.29",Revenue,CIVICA UK LTD,0
South Ribble Borough Council,http://statistics.data.gov.uk/id/local-authority/30UE,CDIG-Customer and Digital,Software Licensing,4243,"Modern.Gov Annual Support & Maintenance, Restricted App & Hosting Yr 2 1/9/22-31/8/23",30/09/2022,0000481991,"15,221.25",Revenue,CIVICA UK LTD,0
South Ribble Borough Council,http://statistics.data.gov.uk/id/local-authority/30UE,COMU-Communities,Publicity & Promotion,4842,Cost of living conference,16/09/2022,0000481517,385.00,Revenue,Claire Foreman,0
South Ribble Borough Council,http://statistics.data.gov.uk/id/local-authority/30UE,COMU-Communities,Temporary Accommodation,5311,NAME REDACTED 7 nights  15/08/2022-22/08/2022,02/09/2022,0000481193,696.50,Revenue,CLAREMONT HOTEL,0
South Ribble Borough Council,http://statistics.data.gov.uk/id/local-authority/30UE,COMU-Communities,Contributions to Other Bodies,4730,NAME REDACTED 7 nights  15/08/2022-22/08/2022,02/09/2022,0000481193,315.00,Revenue,CLAREMONT HOTEL,0
South Ribble Borough Council,http://statistics.data.gov.uk/id/local-authority/30UE,COMU-Communities,Temporary Accommodation,5311,NAME REDACTED 7 nights  15/08/2022-22/08/2022,02/09/2022,0000481193,315.00,Revenue,CLAREMONT HOTEL,0
South Ribble Borough Council,http://statistics.data.gov.uk/id/local-authority/30UE,COMU-Communities,Temporary Accommodation,5311,NAME REDACTED 7 nights  15/08/2022-22/08/2022,02/09/2022,0000481193,525.00,Revenue,CLAREMONT HOTEL,0
South Ribble Borough Council,http://statistics.data.gov.uk/id/local-authority/30UE,COMU-Communities,Temporary Accommodation,5311,NAME REDACTED 7 nights  15/08/2022-22/08/2022,02/09/2022,0000481193,315.00,Revenue,CLAREMONT HOTEL,0
South Ribble Borough Council,http://statistics.data.gov.uk/id/local-authority/30UE,COMU-Communities,Temporary Accommodation,5311,NAME REDACTED 7 nights  15/08/2022-22/08/2022,02/09/2022,0000481193,298.50,Revenue,CLAREMONT HOTEL,0
South Ribble Borough Council,http://statistics.data.gov.uk/id/local-authority/30UE,COMU-Communities,Temporary Accommodation,5311,NAME REDACTED 08/08/2022-15/08/2022 7 nights ,02/09/2022,0000481203,696.50,Revenue,CLAREMONT HOTEL,0
South Ribble Borough Council,http://statistics.data.gov.uk/id/local-authority/30UE,COMU-Communities,Contributions to Other Bodies,4730,NAME REDACTED 08/08/2022-15/08/2022 7 nights ,02/09/2022,0000481203,315.00,Revenue,CLAREMONT HOTEL,0
South Ribble Borough Council,http://statistics.data.gov.uk/id/local-authority/30UE,COMU-Communities,Temporary Accommodation,5311,NAME REDACTED 08/08/2022-15/08/2022 7 nights ,02/09/2022,0000481203,315.00,Revenue,CLAREMONT HOTEL,0
South Ribble Borough Council,http://statistics.data.gov.uk/id/local-authority/30UE,COMU-Communities,Temporary Accommodation,5311,NAME REDACTED 08/08/2022-15/08/2022 7 nights ,02/09/2022,0000481203,525.00,Revenue,CLAREMONT HOTEL,0
South Ribble Borough Council,http://statistics.data.gov.uk/id/local-authority/30UE,COMU-Communities,Temporary Accommodation,5311,NAME REDACTED 08/08/2022-15/08/2022 7 nights ,02/09/2022,0000481203,315.00,Revenue,CLAREMONT HOTEL,0
South Ribble Borough Council,http://statistics.data.gov.uk/id/local-authority/30UE,COMU-Communities,Temporary Accommodation,5311,NAME REDACTED 08/08/2022-15/08/2022 7 nights ,02/09/2022,0000481203,696.50,Revenue,CLAREMONT HOTEL,0
South Ribble Borough Council,http://statistics.data.gov.uk/id/local-authority/30UE,COMU-Communities,Temporary Accommodation,5311,NAME REDACTED 23/8 to 29/8,23/09/2022,0000481651,696.50,Revenue,CLAREMONT HOTEL,0
South Ribble Borough Council,http://statistics.data.gov.uk/id/local-authority/30UE,COMU-Communities,Contributions to Other Bodies,4730,NAME REDACTED 23/8 to 29/8 ,23/09/2022,0000481651,315.00,Revenue,CLAREMONT HOTEL,0
South Ribble Borough Council,http://statistics.data.gov.uk/id/local-authority/30UE,COMU-Communities,Temporary Accommodation,5311,NAME REDACTED 23/8 to 29/8 ,23/09/2022,0000481651,315.00,Revenue,CLAREMONT HOTEL,0
South Ribble Borough Council,http://statistics.data.gov.uk/id/local-authority/30UE,COMU-Communities,Temporary Accommodation,5311,NAME REDACTED 19/8  22/8 ,23/09/2022,0000481651,298.50,Revenue,CLAREMONT HOTEL,0
South Ribble Borough Council,http://statistics.data.gov.uk/id/local-authority/30UE,COMU-Communities,Temporary Accommodation,5311,NAME REDACTED 24/8 to 29/8 ,23/09/2022,0000481651,497.50,Revenue,CLAREMONT HOTEL,0
South Ribble Borough Council,http://statistics.data.gov.uk/id/local-authority/30UE,COMU-Communities,Temporary Accommodation,5311,NAME REDACTED 30/8 to 05/09 ,23/09/2022,0000481652,696.50,Revenue,CLAREMONT HOTEL,0
South Ribble Borough Council,http://statistics.data.gov.uk/id/local-authority/30UE,COMU-Communities,Contributions to Other Bodies,4730,NAME REDACTED 30/8 to 05/09 ,23/09/2022,0000481652,315.00,Revenue,CLAREMONT HOTEL,0
South Ribble Borough Council,http://statistics.data.gov.uk/id/local-authority/30UE,COMU-Communities,Temporary Accommodation,5311,NAME REDACTED 30/8 to 05/09 ,23/09/2022,0000481652,315.00,Revenue,CLAREMONT HOTEL,0
South Ribble Borough Council,http://statistics.data.gov.uk/id/local-authority/30UE,COMU-Communities,Temporary Accommodation,5311,NAME REDACTED 30/08/ to 05/09 ,23/09/2022,0000481652,696.50,Revenue,CLAREMONT HOTEL,0
South Ribble Borough Council,http://statistics.data.gov.uk/id/local-authority/30UE,CDIG-Customer and Digital,Computer Equipment,4241,"Star TSP143IIU+ futurePRNT Thermal Prntr 4326701 39472740 2 460 Flip Lid Drawer, 8C6VN Integral Lid, All Black, 460 x 170 x 100, 3m RJ11",16/09/2022,0000481348,364.50,Revenue,Computacentre (UK) Ltd,0
South Ribble Borough Council,http://statistics.data.gov.uk/id/local-authority/30UE,COMP-Commercial and Property,Cap Contract Payment,C230,"Pre Construction Services Agreement (PCS) - Jubilee Gardens Extra Care, West Paddock, PR25 1DH",30/09/2022,0000481564,"69,663.50",Revenue,Conlon Construction Limited,0
South Ribble Borough Council,http://statistics.data.gov.uk/id/local-authority/30UE,COMP-Commercial and Property,Cap Contract Payment,C230,"Pre Construction Services Agreement (PCS) - Jubilee Gardens Extra Care, West Paddock, PR25 1DH",30/09/2022,0000482033,"85,040.70",Revenue,Conlon Construction Limited,0
South Ribble Borough Council,http://statistics.data.gov.uk/id/local-authority/30UE,CDIG-Customer and Digital,External Contractors Charges,4570,50x Grey 140 Litre  wheelie bins ,30/09/2022,0000481115,"1,203.50",Revenue,Contenur UK Ltd,0
South Ribble Borough Council,http://statistics.data.gov.uk/id/local-authority/30UE,CDIG-Customer and Digital,Technical Support,4246,fiber connection line from bamber bridge leisure to the football pavillian,16/09/2022,0000481504,"3,467.82",Revenue,Core Integrated Solutions,0
South Ribble Borough Council,http://statistics.data.gov.uk/id/local-authority/30UE,CDIG-Customer and Digital,Miscellaneous Expenses,4851,"Serve and evict travellers at Withy Grove Park, Bamber Bridge Preston PR5 6NT on 19/08/22",02/09/2022,0000481286,"1,700.00",Revenue,Court Enforcement Specialists Ltd,0
South Ribble Borough Council,http://statistics.data.gov.uk/id/local-authority/30UE,COMP-Commercial and Property,Operational Equip & Tools,4010,For items of equipment as listed as per names redacted Apollo 600 + Portable Pat Tester  INO8013 Patguard 3   INO8044,30/09/2022,0000481997,"1,174.95",Revenue,CPC Re: COMBINED PRECISION COMPONENTS PLC,0
South Ribble Borough Council,http://statistics.data.gov.uk/id/local-authority/30UE,CDIG-Customer and Digital,Postage General,4291,POSTAGE FOR AUG 2022 TO MARCH 2023,02/09/2022,0000481100,455.26,Revenue,CRITIQOM,0
South Ribble Borough Council,http://statistics.data.gov.uk/id/local-authority/30UE,CDIG-Customer and Digital,Postage General,4291,POSTAGE FOR AUG 2022 TO MARCH 2023,02/09/2022,0000481170,353.10,Revenue,CRITIQOM,0
South Ribble Borough Council,http://statistics.data.gov.uk/id/local-authority/30UE,CDIG-Customer and Digital,Postage General,4291,POSTAGE FOR AUG 2022 TO MARCH 2023,09/09/2022,0000481335,578.23,Revenue,CRITIQOM,0
South Ribble Borough Council,http://statistics.data.gov.uk/id/local-authority/30UE,CDIG-Customer and Digital,Postage General,4291,POSTAGE FOR AUG 2022 TO MARCH 2023,16/09/2022,0000481562,"2,332.46",Revenue,CRITIQOM,0
South Ribble Borough Council,http://statistics.data.gov.uk/id/local-authority/30UE,CDIG-Customer and Digital,Stationery General,4130,STATIONERY FOR APRIL TO SEPT 2022,16/09/2022,0000481563,539.36,Revenue,CRITIQOM,0
South Ribble Borough Council,http://statistics.data.gov.uk/id/local-authority/30UE,CDIG-Customer and Digital,Postage General,4291,POSTAGE FOR AUG 2022 TO MARCH 2023,23/09/2022,0000481803,896.85,Revenue,CRITIQOM,0
South Ribble Borough Council,http://statistics.data.gov.uk/id/local-authority/30UE,CDIG-Customer and Digital,Postage General,4291,POSTAGE FOR AUG 2022 TO MARCH 2023,30/09/2022,0000481993,572.54,Revenue,CRITIQOM,0
South Ribble Borough Council,http://statistics.data.gov.uk/id/local-authority/30UE,POLY-Policy,Miscellaneous Expenses,4851,HR Inform - provision of services in accordance with policy HR1615,16/09/2022,0000481744,608.00,Revenue,CRONER-i LIMITED t/a HR INFORM,0
South Ribble Borough Council,http://statistics.data.gov.uk/id/local-authority/30UE,COMP-Commercial and Property,Professional Fees,4510,Epson Portable projector - White 3 x Belkin Notebook Sleeve Lowepro Adventura Camera Bag PNY Elite Class 128GB SD Memory Card,30/09/2022,0000481917,479.56,Revenue,Currys PC World Business,0
South Ribble Borough Council,http://statistics.data.gov.uk/id/local-authority/30UE,POLY-Policy,Amount Paid,0030,Cyclescheme for NAME REDACTED,30/09/2022,0000481839,"1,250.00",Revenue,CYCLESCHEME CO  UK,0
South Ribble Borough Council,http://statistics.data.gov.uk/id/local-authority/30UE,COMU-Communities,Temporary Accommodation,5311,NAME REDACTED The Anvil October 2022,30/09/2022,0000481951,420.00,Revenue,David Iddon & Corrina Kellett,0
South Ribble Borough Council,http://statistics.data.gov.uk/id/local-authority/30UE,COMP-Commercial and Property,Publicity & Promotion,4842,Face painter and children�s activities for Taste of Leyland Event Sat 24th Sept 2022,30/09/2022,0000482018,460.00,Revenue,Deborah Noblett (Facebook account),0
South Ribble Borough Council,http://statistics.data.gov.uk/id/local-authority/30UE,CDIG-Customer and Digital,Materials General,4040,1x Fuel tank cap 1x Seatbelt guide 1x Seatbelt 1x Seatbelt buckle 4x Spring eye bush 2x Shackle bush 2x Shackle pins 2x Spring eye pins,02/09/2022,0000481150,"1,910.13",Revenue,DENNIS EAGLE LTD,0
South Ribble Borough Council,http://statistics.data.gov.uk/id/local-authority/30UE,CDIG-Customer and Digital,Materials General,4040,"1x shackle bushes top, Shackle pins rear, shackle pins front, 1x spring brushes,",16/09/2022,0000481298,783.36,Revenue,DENNIS EAGLE LTD,0
South Ribble Borough Council,http://statistics.data.gov.uk/id/local-authority/30UE,CDIG-Customer and Digital,Materials General,4040,"1x leaf spring, VA19 KOX, JFC18878",16/09/2022,0000481301,560.39,Revenue,DENNIS EAGLE LTD,0
South Ribble Borough Council,http://statistics.data.gov.uk/id/local-authority/30UE,CDIG-Customer and Digital,Materials General,4040,"1x ad blue harness and air pressure sensor, VO65 KPX, JFC18960",23/09/2022,0000481653,328.23,Revenue,DENNIS EAGLE LTD,0
South Ribble Borough Council,http://statistics.data.gov.uk/id/local-authority/30UE,CDIG-Customer and Digital,Materials General,4040,8xSlide blocks VO65 KPZ JFC 18985,23/09/2022,0000481756,358.75,Revenue,DENNIS EAGLE LTD,0
South Ribble Borough Council,http://statistics.data.gov.uk/id/local-authority/30UE,POLY-Policy,Contributions to Other Bodies,4730,Omicron Hospitality and Leisure Grant. Unspent returned to BEIS,23/09/2022,0000481787,"102,670.00",Revenue,Dept for Business Energy & Ind. Strategy (BEIS),0
South Ribble Borough Council,http://statistics.data.gov.uk/id/local-authority/30UE,COMP-Commercial and Property,Operational Equip & Tools,4010,May 2022 Shared Services (Chorley) Lanyards 2 x pack of 100 lanyards + FastTrack delivery fee,30/09/2022,0000481655,294.95,Revenue,DIGITAL ID LTD,0
South Ribble Borough Council,http://statistics.data.gov.uk/id/local-authority/30UE,CDIG-Customer and Digital,Materials General,4040,"1x dpf pressure sensor, LN69 XRM, JFC18839",23/09/2022,0000481804,348.79,Revenue,Ditchburn Truck Services LLP,0
South Ribble Borough Council,http://statistics.data.gov.uk/id/local-authority/30UE,CDIG-Customer and Digital,Materials General,4040,1 DPF Pressure Sensor LN69 XRL JFC19005,30/09/2022,0000482029,365.73,Revenue,Ditchburn Truck Services LLP,0
South Ribble Borough Council,http://statistics.data.gov.uk/id/local-authority/30UE,CDIG-Customer and Digital,GM Refurbishment,4657,Repair and reinstallation of Mccnamara gardens sign in Bamber bridge,30/09/2022,0000482019,700.00,Revenue,DP STRUCTURES LTD,0
South Ribble Borough Council,http://statistics.data.gov.uk/id/local-authority/30UE,PDEV-Planning and Development,Agency Staff,1121,"Design witness at the forthcoming planning appeals: Preparation, including reading of related information and relevant planning policy framework",23/09/2022,0000481442,"9,350.00",Revenue,Dr D A Price,0
South Ribble Borough Council,http://statistics.data.gov.uk/id/local-authority/30UE,COMP-Commercial and Property,Cap Contract Payment,C230,"Supply, delivery and installation of FFE to Worden Hall",30/09/2022,0000481567,"54,470.84",Revenue,Dragonfly Contracts Ltd,0
South Ribble Borough Council,http://statistics.data.gov.uk/id/local-authority/30UE,COMP-Commercial and Property,Reactive Repair & Maintenance,2020,Site Address : South Ribble Borough Council Civic Centre Leyland Preston PR25 1 D as per quote 3479 as per NAME REDACTED request ,16/09/2022,0000481656,580.00,Revenue,E A Foulds Limited,0
South Ribble Borough Council,http://statistics.data.gov.uk/id/local-authority/30UE,COMP-Commercial and Property,Planned Annual Repair & Maintenance,2021, Passenger Lift 3479  South Ribble Borough Council Client Ref: NEW LIFT To improve safety we recommend repl,30/09/2022,0000482060,"1,849.02",Revenue,E A Foulds Limited,0
South Ribble Borough Council,http://statistics.data.gov.uk/id/local-authority/30UE,CDIG-Customer and Digital,Cap Vehicles,C440,26x 1100ltr Bins as per quote E000013258,30/09/2022,0000481941,"9,293.70",Revenue,Egbert H Taylor & Co Ltd,0
South Ribble Borough Council,http://statistics.data.gov.uk/id/local-authority/30UE,CDIG-Customer and Digital,Cap Vehicles,C440,Delivery,30/09/2022,0000481941,510.00,Revenue,Egbert H Taylor & Co Ltd,0
South Ribble Borough Council,http://statistics.data.gov.uk/id/local-authority/30UE,CDIG-Customer and Digital,External Contractors Charges,4570,Replace carriage plate and associated components in  order to return vehicle to service. VO65 KPX JFC18902,16/09/2022,0000481390,"6,093.36",Revenue,Euro Municipals Ltd,0
South Ribble Borough Council,http://statistics.data.gov.uk/id/local-authority/30UE,COMU-Communities,Core Fund,4861,"Deliver 3000 newsletters to the Eastern area of South Ribble, map of the areas to be provided but will include Higher Walton",16/09/2022,0000481368,360.00,Revenue,EUROMEDIA ASSOCIATES LTD,0
South Ribble Borough Council,http://statistics.data.gov.uk/id/local-authority/30UE,CDIG-Customer and Digital,Materials General,4040,6 x track rod ends BIN 1107,02/09/2022,0000481154,329.76,Revenue,F R SHARROCK LTD,0
South Ribble Borough Council,http://statistics.data.gov.uk/id/local-authority/30UE,CDIG-Customer and Digital,Materials General,4040,Drive motor PO16 HMY JFC 18781,02/09/2022,0000481160,436.80,Revenue,F R SHARROCK LTD,0
South Ribble Borough Council,http://statistics.data.gov.uk/id/local-authority/30UE,CDIG-Customer and Digital,External Contractors Charges,4570,Residual Waste Collection 1st June-10th June 2022,16/09/2022,0000481396,"15,661.17",Revenue,FCC Environment Services (UK) Ltd,0
South Ribble Borough Council,http://statistics.data.gov.uk/id/local-authority/30UE,CDIG-Customer and Digital,External Contractors Charges,4570,Dry Recycable non terrace 1st June-10th June 2022,16/09/2022,0000481396,"16,036.36",Revenue,FCC Environment Services (UK) Ltd,0
South Ribble Borough Council,http://statistics.data.gov.uk/id/local-authority/30UE,CDIG-Customer and Digital,External Contractors Charges,4570,Dry recycable terrace 1st June-10th June 2022,16/09/2022,0000481396,762.34,Revenue,FCC Environment Services (UK) Ltd,0
South Ribble Borough Council,http://statistics.data.gov.uk/id/local-authority/30UE,CDIG-Customer and Digital,External Contractors Charges,4570,Organic Waste non terrace 1st June-10th June 2022,16/09/2022,0000481396,"11,109.93",Revenue,FCC Environment Services (UK) Ltd,0
South Ribble Borough Council,http://statistics.data.gov.uk/id/local-authority/30UE,CDIG-Customer and Digital,External Contractors Charges,4570,Schedule 2 Properties 1st June-10th June 2022,16/09/2022,0000481396,636.96,Revenue,FCC Environment Services (UK) Ltd,0
South Ribble Borough Council,http://statistics.data.gov.uk/id/local-authority/30UE,CDIG-Customer and Digital,External Contractors Charges,4570,Commercial Waste Collections 1st June-10th June 2022,16/09/2022,0000481396,"2,489.96",Revenue,FCC Environment Services (UK) Ltd,0
South Ribble Borough Council,http://statistics.data.gov.uk/id/local-authority/30UE,CDIG-Customer and Digital,External Contractors Charges,4570,Bulky Waste 1st June-10th June 2022,16/09/2022,0000481396,344.69,Revenue,FCC Environment Services (UK) Ltd,0
South Ribble Borough Council,http://statistics.data.gov.uk/id/local-authority/30UE,CDIG-Customer and Digital,External Contractors Charges,4570,WEEE Collections 1st June-10th June 2022,16/09/2022,0000481396,129.09,Revenue,FCC Environment Services (UK) Ltd,0
South Ribble Borough Council,http://statistics.data.gov.uk/id/local-authority/30UE,CDIG-Customer and Digital,External Contractors Charges,4570,Clinical Waste Collections 1st June-10th June 2022,16/09/2022,0000481396,219.87,Revenue,FCC Environment Services (UK) Ltd,0
South Ribble Borough Council,http://statistics.data.gov.uk/id/local-authority/30UE,CDIG-Customer and Digital,External Contractors Charges,4570,Additional Properties 1st June-10th June 2022,16/09/2022,0000481396,"2,203.72",Revenue,FCC Environment Services (UK) Ltd,0
South Ribble Borough Council,http://statistics.data.gov.uk/id/local-authority/30UE,CDIG-Customer and Digital,External Contractors Charges,4570,Bins supply and reconciliation 1.4.21 - 10.6.22,16/09/2022,0000481398,"21,643.94",Revenue,FCC Environment Services (UK) Ltd,0
South Ribble Borough Council,http://statistics.data.gov.uk/id/local-authority/30UE,CDIG-Customer and Digital,Materials General,4040,FOOTBALL PITCH LINE MARKER PAINT 10LTRS  PITCHMARKER Q2,16/09/2022,0000481302,511.68,Revenue,Fleet Line Markers Limited,0
South Ribble Borough Council,http://statistics.data.gov.uk/id/local-authority/30UE,CDIG-Customer and Digital,Cap Contract Payment,C230,Installation of pay and display machine.,30/09/2022,0000481661,425.00,Revenue,Flowbird Smart City UK Ltd,0
South Ribble Borough Council,http://statistics.data.gov.uk/id/local-authority/30UE,COMU-Communities,External Catering Charges,4575,HAF lunches for summer 2022. 29 July to 19 August,09/09/2022,0000481221,280.00,Revenue,Folly Coffee House,0
South Ribble Borough Council,http://statistics.data.gov.uk/id/local-authority/30UE,CDIG-Customer and Digital,Departmental Course Fees,1420,T1080-P-O-CPC Refresher Training for Freight Operators per candidate NAMES REDACTED,30/09/2022,0000480931,"1,060.00",Revenue,FREIGHT TRANSPORT ASSOCIATION,0
South Ribble Borough Council,http://statistics.data.gov.uk/id/local-authority/30UE,CDIG-Customer and Digital,External Contractors Charges,4570,TA052-T-1-0 - Vision Training for Standard Users up to 3 Delegates (on site),16/09/2022,0000481498,340.00,Revenue,FREIGHT TRANSPORT ASSOCIATION,0
South Ribble Borough Council,http://statistics.data.gov.uk/id/local-authority/30UE,CDIG-Customer and Digital,Petrol,3131,Fuel W/C 08.08.22,02/09/2022,0000481168,273.58,Revenue,Fuel Card Services,0
South Ribble Borough Council,http://statistics.data.gov.uk/id/local-authority/30UE,CDIG-Customer and Digital,Petrol,3131,Fuel W/C 15.08.22,16/09/2022,0000481341,302.73,Revenue,Fuel Card Services,0
South Ribble Borough Council,http://statistics.data.gov.uk/id/local-authority/30UE,PDEV-Planning and Development,Operational Equip & Tools,4010,"Plotter paper, ink cartridges and stationary for new financial year",23/09/2022,0000481452,397.83,Revenue,GCS UK ASSOCIATES LTD,0
South Ribble Borough Council,http://statistics.data.gov.uk/id/local-authority/30UE,COMP-Commercial and Property,Cap Contract Payment,C230,"Ground Investigation works - West Paddock, Leyland",30/09/2022,0000479959,"26,821.53",Revenue,Geotechnics Limited,0
South Ribble Borough Council,http://statistics.data.gov.uk/id/local-authority/30UE,POLY-Policy,Miscellaneous Expenses,4851,National Rail 4 Sheet  National Rail 4 sheet Bus Supersides Production cost,09/09/2022,0000481319,562.00,Revenue,Global Media Group Services Ltd,0
South Ribble Borough Council,http://statistics.data.gov.uk/id/local-authority/30UE,POLY-Policy,Miscellaneous Expenses,4851,National Rail 4 Sheet  National Rail 4 sheet Bus Supersides Production cost,09/09/2022,0000481321,"2,993.00",Revenue,Global Media Group Services Ltd,0
South Ribble Borough Council,http://statistics.data.gov.uk/id/local-authority/30UE,POLY-Policy,Miscellaneous Expenses,4851,National Rail 4 Sheet  National Rail 4 sheet Bus Supersides Production cost,09/09/2022,0000481323,457.00,Revenue,Global Media Group Services Ltd,0
South Ribble Borough Council,http://statistics.data.gov.uk/id/local-authority/30UE,COMP-Commercial and Property,Reactive Repair & Maintenance,2020,Remedial works after the service of the boilers. As per NAME REDACTED,16/09/2022,0000481662,967.52,Revenue,GOS Heating Ltd,0
South Ribble Borough Council,http://statistics.data.gov.uk/id/local-authority/30UE,COMP-Commercial and Property,Reactive Repair & Maintenance,2020,Remedial works after the service of the boilers. As per NAME REDACTED,16/09/2022,0000481663,"2,423.87",Revenue,GOS Heating Ltd,0
South Ribble Borough Council,http://statistics.data.gov.uk/id/local-authority/30UE,COMP-Commercial and Property,Planned Annual Repair & Maintenance,2021,"carry out an electrical inspection of the full solar PV system, which involves following: This is to inspect/service the 3rd floor solar panel system",30/09/2022,0000481915,"2,623.50",Revenue,GOS Heating Ltd,0
South Ribble Borough Council,http://statistics.data.gov.uk/id/local-authority/30UE,COMP-Commercial and Property,Cap Contract Payment,C230,Leyland Town Deal Project - Procurement Strategy - Stage 2,09/09/2022,0000481392,"2,153.16",Revenue,Gosling Consulting Limited,0
South Ribble Borough Council,http://statistics.data.gov.uk/id/local-authority/30UE,COMP-Commercial and Property,Cap Contract Payment,C230,Leyland Town Deal - Additional Document Management Services ,09/09/2022,0000481393,525.00,Revenue,Gosling Consulting Limited,0
South Ribble Borough Council,http://statistics.data.gov.uk/id/local-authority/30UE,CDIG-Customer and Digital,Materials General,4040,GRAFFITI REMOVER TRANSGEL (5 LITRE),02/09/2022,0000481020,423.00,Revenue,Graffiti Removal Ltd,0
South Ribble Borough Council,http://statistics.data.gov.uk/id/local-authority/30UE,COMP-Commercial and Property,Reactive Repair & Maintenance,2020,Please survey and produce a report as to see if our roof at Civic centre  is constructed with Reinforced Autoclaved Aerated Concrete ,02/09/2022,0000481266,525.00,Revenue,GRAHAM SCHOFIELD ASSOCIATES,0
South Ribble Borough Council,http://statistics.data.gov.uk/id/local-authority/30UE,COMU-Communities,External Catering Charges,4575,HAF lunches for week 2 and week 3 - 790 and 710 lunches ,09/09/2022,0000481116,"7,250.00",Revenue,Halls Bakery Limited,0
South Ribble Borough Council,http://statistics.data.gov.uk/id/local-authority/30UE,COMU-Communities,External Catering Charges,4575,HAF lunches for week 4 and week 5 - 600 and 510 lunches ,16/09/2022,0000481468,"5,550.00",Revenue,Halls Bakery Limited,0
South Ribble Borough Council,http://statistics.data.gov.uk/id/local-authority/30UE,CDIG-Customer and Digital,Materials General,4040,30 X Flail Competition MC-7390276,02/09/2022,0000481248,210.00,Revenue,Halse South West Limited,0
South Ribble Borough Council,http://statistics.data.gov.uk/id/local-authority/30UE,CDIG-Customer and Digital,Materials General,4040,2 x Bolt Pack kit 1.2/1.6m MC-7190840 ,02/09/2022,0000481248,160.00,Revenue,Halse South West Limited,0
South Ribble Borough Council,http://statistics.data.gov.uk/id/local-authority/30UE,CDIG-Customer and Digital,Materials General,4040,Carriage,02/09/2022,0000481248,25.00,Revenue,Halse South West Limited,0
South Ribble Borough Council,http://statistics.data.gov.uk/id/local-authority/30UE,COMU-Communities,Capital Grant,C570,"DFG WORK TO MAKE ADAPTATIONS AT DUNNERSHOLME, ADDRESS REDACTED AS PER SRBC PLANS",09/09/2022,0000481462,"20,000.00",Revenue,NAME REDACTED,0
South Ribble Borough Council,http://statistics.data.gov.uk/id/local-authority/30UE,COMP-Commercial and Property,Agency Staff,1121,NAME REDACTED - Estates and Facilities Manager - South Ribble Borough Council,30/09/2022,0000480953,"2,100.00",Revenue,Hays Specialist Recruitment Ltd,0
South Ribble Borough Council,http://statistics.data.gov.uk/id/local-authority/30UE,COMP-Commercial and Property,Agency Staff,1121,NAME REDACTED - Estates and Facilities Manager - South Ribble Borough Council,30/09/2022,0000480954,"1,904.00",Revenue,Hays Specialist Recruitment Ltd,0
South Ribble Borough Council,http://statistics.data.gov.uk/id/local-authority/30UE,COMP-Commercial and Property,Agency Staff,1121,NAME REDACTED - Estates and Facilities Manager - South Ribble Borough Council,30/09/2022,0000481044,"1,988.00",Revenue,Hays Specialist Recruitment Ltd,0
South Ribble Borough Council,http://statistics.data.gov.uk/id/local-authority/30UE,COMP-Commercial and Property,Agency Staff,1121,NAME REDACTED - Estates and Facilities Manager - South Ribble Borough Council,30/09/2022,0000481045,"2,100.00",Revenue,Hays Specialist Recruitment Ltd,0
South Ribble Borough Council,http://statistics.data.gov.uk/id/local-authority/30UE,COMP-Commercial and Property,Agency Staff,1121,NAME REDACTED - Estates and Facilities Manager - South Ribble Borough Council,30/09/2022,0000481475,"2,044.00",Revenue,Hays Specialist Recruitment Ltd,0
South Ribble Borough Council,http://statistics.data.gov.uk/id/local-authority/30UE,COMP-Commercial and Property,Agency Staff,1121,NAME REDACTED - Estates and Facilities Manager - South Ribble Borough Council,30/09/2022,0000481476,"2,128.00",Revenue,Hays Specialist Recruitment Ltd,0
South Ribble Borough Council,http://statistics.data.gov.uk/id/local-authority/30UE,COMP-Commercial and Property,Reactive Repair & Maintenance,2020,"To attend both crossroads and playground toilets on worden park following vandalism. Playground toilets, 3x porthole windows, ",16/09/2022,0000481403,570.75,Revenue,Healthmatic Limited,0
South Ribble Borough Council,http://statistics.data.gov.uk/id/local-authority/30UE,COMP-Commercial and Property,Reactive Repair & Maintenance,2020,LABOUR,16/09/2022,0000481403,216.00,Revenue,Healthmatic Limited,0
South Ribble Borough Council,http://statistics.data.gov.uk/id/local-authority/30UE,COMP-Commercial and Property,Licences Fee General,488B,mgmt fees,02/09/2022,0000481292,"1,000.00",Revenue,HIGHER WALTON COMMUNITY CENTRE,0
South Ribble Borough Council,http://statistics.data.gov.uk/id/local-authority/30UE,COMU-Communities,External Catering Charges,4575,HAF lunches  29July-19 August,09/09/2022,0000481220,280.00,Revenue,Hurst Grange Coffee House and Cafe,0
South Ribble Borough Council,http://statistics.data.gov.uk/id/local-authority/30UE,COMU-Communities,Professional Fees,4510,Photography for HAF as discussed and agreed,02/09/2022,0000481117,750.00,Revenue,IAN ROBINSON,0
South Ribble Borough Council,http://statistics.data.gov.uk/id/local-authority/30UE,GOVE-Governance,Electoral Administration Act,4970,"IDOX 2022 CANVASS OPTIONS (INC SETUP, RESPONSES, DATA RELOADS, PRINT AND SEND AND TELEPHONE CANVASS) ",23/09/2022,0000481454,"2,971.11",Revenue,IDOX PLC,0
South Ribble Borough Council,http://statistics.data.gov.uk/id/local-authority/30UE,CDIG-Customer and Digital,Materials General,4040,QC10,23/09/2022,0000481664,"1,367.52",Revenue,INSTARMAC GROUP PLC,0
South Ribble Borough Council,http://statistics.data.gov.uk/id/local-authority/30UE,CDIG-Customer and Digital,GM Refurbishment,4657,10No. 3.6m galvanised field gate with `D` loop and posts with auto latch on closing post,23/09/2022,0000481667,"3,295.20",Revenue,JOHN HY MAYOR & SONS LTD,0
South Ribble Borough Council,http://statistics.data.gov.uk/id/local-authority/30UE,CDIG-Customer and Digital,Hiring Expenses,3212,Heras Fencing Hire for the Slide at Withy Grove Park (Fire Damage),02/09/2022,0000481174,503.60,Revenue,John Wade Groundworks Ltd t/a Wade Group,0
South Ribble Borough Council,http://statistics.data.gov.uk/id/local-authority/30UE,GOVE-Governance,Legal,4821,PROFESSIONAL SERVICES IN RELATION TO ADVICE REGARDING AFFORDABLE HOMES AT PENWORTHAM MILLS,02/09/2022,0000481172,"1,125.00",Revenue,Jonathon Easton (C/O Kings Chambers),0
South Ribble Borough Council,http://statistics.data.gov.uk/id/local-authority/30UE,COMP-Commercial and Property,Cap Contract Payment,C230,Provision of MEP Consultant Services (Stages 4-7) for the delivery of the Worden Hall refurbishment as per tender as per NAME REDACTED,23/09/2022,0000481732,"5,950.00",Revenue,JRB Environmental Design Limited,0
South Ribble Borough Council,http://statistics.data.gov.uk/id/local-authority/30UE,CDIG-Customer and Digital,Hiring Expenses,3212,Nifty Lift on Hire 13th & 14th September 2022  Trailer On Hire 13th & 14th September,30/09/2022,0000481815,574.85,Revenue,K H HIRE SERVICES,0
South Ribble Borough Council,http://statistics.data.gov.uk/id/local-authority/30UE,COMP-Commercial and Property,Cap Contract Payment,C230,Provision of SNA - Extra Care (West Paddock) Scheme,30/09/2022,0000482034,"1,000.00",Revenue,KABSEC Consultancy Ltd,0
South Ribble Borough Council,http://statistics.data.gov.uk/id/local-authority/30UE,CDIG-Customer and Digital,External Contractors Charges,4570,"Longton Bypass 
Salmsbury 
End of M65 / Lostock Lane

Late May and August",02/09/2022,0000481272,"3,650.00",Revenue,KAYS TRAFFIC MANAGEMENT LTD,0
South Ribble Borough Council,http://statistics.data.gov.uk/id/local-authority/30UE,CDIG-Customer and Digital,Clothing and Uniforms,4410,Hi Vis Yellow/Navy AQUA Ballistic trouser 36S,23/09/2022,0000481411,135.36,Revenue,KEY ENGINEERING & HYGIENE SUPPLIES LTD,0
South Ribble Borough Council,http://statistics.data.gov.uk/id/local-authority/30UE,CDIG-Customer and Digital,Clothing and Uniforms,4410,HI vis Yellow/Navy AQUA Ballistic trousers 38S,23/09/2022,0000481411,135.36,Revenue,KEY ENGINEERING & HYGIENE SUPPLIES LTD,0
South Ribble Borough Council,http://statistics.data.gov.uk/id/local-authority/30UE,CDIG-Customer and Digital,Clothing and Uniforms,4410,Hi vis Yellow/Navy AQUA Ballistic Trousers 30R,16/09/2022,0000481412,135.36,Revenue,KEY ENGINEERING & HYGIENE SUPPLIES LTD,0
South Ribble Borough Council,http://statistics.data.gov.uk/id/local-authority/30UE,CDIG-Customer and Digital,Clothing and Uniforms,4410,Hi Vis Yellow/Navy AQUA Ballistic Trousers 32R,16/09/2022,0000481412,135.36,Revenue,KEY ENGINEERING & HYGIENE SUPPLIES LTD,0
South Ribble Borough Council,http://statistics.data.gov.uk/id/local-authority/30UE,CDIG-Customer and Digital,Clothing and Uniforms,4410,Hi vis Navy/Yellow AQUA Ballistic Trousers 34R,16/09/2022,0000481412,135.36,Revenue,KEY ENGINEERING & HYGIENE SUPPLIES LTD,0
South Ribble Borough Council,http://statistics.data.gov.uk/id/local-authority/30UE,CDIG-Customer and Digital,Clothing and Uniforms,4410,Hi Vis Yellow/Navy AQUA Ballistic Trousers 38R,16/09/2022,0000481412,67.68,Revenue,KEY ENGINEERING & HYGIENE SUPPLIES LTD,0
South Ribble Borough Council,http://statistics.data.gov.uk/id/local-authority/30UE,CDIG-Customer and Digital,Clothing and Uniforms,4410,Hi Vis Yellow/Navy AQUA Ballistic Trousers 40R,16/09/2022,0000481412,67.68,Revenue,KEY ENGINEERING & HYGIENE SUPPLIES LTD,0
South Ribble Borough Council,http://statistics.data.gov.uk/id/local-authority/30UE,CDIG-Customer and Digital,Clothing and Uniforms,4410,Hi is Yellow/Navy AQUA Ballistic Trousers 42R,16/09/2022,0000481412,90.24,Revenue,KEY ENGINEERING & HYGIENE SUPPLIES LTD,0
South Ribble Borough Council,http://statistics.data.gov.uk/id/local-authority/30UE,COMU-Communities,Professional Fees,4510,"HAF activity provider for summer camps. Weeks 3,4,5. 16 August - 2 September",16/09/2022,0000481473,"3,360.00",Revenue,KEY UNLOCKING FUTURES LTD,0
South Ribble Borough Council,http://statistics.data.gov.uk/id/local-authority/30UE,COMU-Communities,Professional Fees,4510,HAF summer activity camps 22-26 August,16/09/2022,0000481515,"2,250.00",Revenue,Kick On Football Coaching,0
South Ribble Borough Council,http://statistics.data.gov.uk/id/local-authority/30UE,COMP-Commercial and Property,Rents,2401,"Payment of annual rental charge at Forward Industrial Estate, L2 Property Limited for 2022/2023",30/09/2022,0000481755,"16,147.50",Revenue,L2 Property Limited,0
South Ribble Borough Council,http://statistics.data.gov.uk/id/local-authority/30UE,COMP-Commercial and Property,Rents,2401,less ground rent,30/09/2022,0000481755,"-2,850.00",Revenue,L2 Property Limited,0
South Ribble Borough Council,http://statistics.data.gov.uk/id/local-authority/30UE,CDIG-Customer and Digital,Materials General,4040,"2x batteries, VA19 KOX, JFC18776",16/09/2022,0000481389,310.00,Revenue,Lancashire Rotating Electrics,0
South Ribble Borough Council,http://statistics.data.gov.uk/id/local-authority/30UE,CDIG-Customer and Digital,Clinical Waste Disposal,5112,January 2022 - Incineration of clinical waste,16/09/2022,0000481546,486.38,Revenue,LANCASHIRE TEACHING FT,0
South Ribble Borough Council,http://statistics.data.gov.uk/id/local-authority/30UE,CDIG-Customer and Digital,Clinical Waste Disposal,5112,February 2022 - Incineration of clinical waste,16/09/2022,0000481738,457.88,Revenue,LANCASHIRE TEACHING FT,0
South Ribble Borough Council,http://statistics.data.gov.uk/id/local-authority/30UE,CDIG-Customer and Digital,Clinical Waste Disposal,5112,April 2022 - Incineration of clinical waste,23/09/2022,0000481739,622.23,Revenue,LANCASHIRE TEACHING FT,0
South Ribble Borough Council,http://statistics.data.gov.uk/id/local-authority/30UE,GOVE-Governance,L C C General,4530,LAND CHARGES - AUGUST 2022,02/09/2022,0000481181,656.00,Revenue,LANCS COUNTY COUNCIL,0
South Ribble Borough Council,http://statistics.data.gov.uk/id/local-authority/30UE,COMU-Communities,Analyst Fee,4542,Analyst of samples ADDRESS & NAME REDACTED,16/09/2022,0000481254,500.00,Revenue,LANCS COUNTY COUNCIL,0
South Ribble Borough Council,http://statistics.data.gov.uk/id/local-authority/30UE,GOVE-Governance,L C C General,4530,LAND CHARGES - SEPTEMBER 2022,16/09/2022,0000481555,858.00,Revenue,LANCS COUNTY COUNCIL,0
South Ribble Borough Council,http://statistics.data.gov.uk/id/local-authority/30UE,COMU-Communities,Capital Grant,C570,DFG WORK TO SUPPLY AND INSTALL HOISTS X2 AT ADDRESS REDACTED AS PER THE QUOTE,16/09/2022,0000481677,"2,236.00",Revenue,LANCS COUNTY COUNCIL,0
South Ribble Borough Council,http://statistics.data.gov.uk/id/local-authority/30UE,CDIG-Customer and Digital,Landfilll Charges,5412,"Quarter 1 Disposal Fee, Landfill Tax & 5% Admin Fee",30/09/2022,0000481757,"61,564.20",Revenue,LANCS COUNTY COUNCIL,0
South Ribble Borough Council,http://statistics.data.gov.uk/id/local-authority/30UE,CDIG-Customer and Digital,Materials General,4040,"1x gear change pad, YD19 AUM, JFC18804",02/09/2022,0000481255,541.59,Revenue,LANCS DAF,0
South Ribble Borough Council,http://statistics.data.gov.uk/id/local-authority/30UE,CDIG-Customer and Digital,Materials General,4040,"1 Brake Chamber YA19 NGN, JFC 18915",02/09/2022,0000481285,536.69,Revenue,LANCS DAF,0
South Ribble Borough Council,http://statistics.data.gov.uk/id/local-authority/30UE,CDIG-Customer and Digital,Materials General,4040,"2 sets of Brake pads, YD19 AYK, JFC18880 1 x Anti roll bar link arm",09/09/2022,0000481328,312.48,Revenue,LANCS DAF,0
South Ribble Borough Council,http://statistics.data.gov.uk/id/local-authority/30UE,CDIG-Customer and Digital,Materials General,4040,1 cab side panel 1 door switch 1 dash vent 1 brake pad loom 1 service kit YD19 ATZ JFC18929,16/09/2022,0000481426,837.41,Revenue,LANCS DAF,0
South Ribble Borough Council,http://statistics.data.gov.uk/id/local-authority/30UE,CDIG-Customer and Digital,Materials General,4040,head gasket kit head bolts PF18 JOV JFC 18737,16/09/2022,0000481571,551.22,Revenue,LANCS DAF,0
South Ribble Borough Council,http://statistics.data.gov.uk/id/local-authority/30UE,CDIG-Customer and Digital,Materials General,4040,"1x spring brake chamber, YD19 AUT, JFC18969",16/09/2022,0000481737,536.96,Revenue,LANCS DAF,0
South Ribble Borough Council,http://statistics.data.gov.uk/id/local-authority/30UE,CDIG-Customer and Digital,Materials General,4040,Gear selector pad YD19 ATY JFC 19003,30/09/2022,0000481945,541.59,Revenue,LANCS DAF,0
South Ribble Borough Council,http://statistics.data.gov.uk/id/local-authority/30UE,CDIG-Customer and Digital,Materials General,4040,Service Kit YA19 NKD JFC 19014,30/09/2022,0000481961,281.94,Revenue,LANCS DAF,0
South Ribble Borough Council,http://statistics.data.gov.uk/id/local-authority/30UE,CDIG-Customer and Digital,Materials General,4040,Gear selector pad YD19 ATK JFC 19004,30/09/2022,0000481962,541.59,Revenue,LANCS DAF,0
South Ribble Borough Council,http://statistics.data.gov.uk/id/local-authority/30UE,COMU-Communities,Core Fund,4861,Phase 2 Broadfield Community Development � Summer 2022,02/09/2022,0000481118,"4,000.00",Revenue,Lets Grow Preston,0
South Ribble Borough Council,http://statistics.data.gov.uk/id/local-authority/30UE,COMP-Commercial and Property,Reactive Repair & Maintenance,2020,"4X posts to be fit covering the distribution board and main electrical incomer(s). Following the power cut three weeks ago, caused by oil barrels",16/09/2022,0000481681,795.00,Revenue,Leyland Lane Wrought Iron Gates & Railings,0
South Ribble Borough Council,http://statistics.data.gov.uk/id/local-authority/30UE,COMP-Commercial and Property,Reactive Repair & Maintenance,2020,"5x posts to be fit in front of the diesel fuel tanks, following the civil groundworks in the works yard. ",16/09/2022,0000481681,990.00,Revenue,Leyland Lane Wrought Iron Gates & Railings,0
South Ribble Borough Council,http://statistics.data.gov.uk/id/local-authority/30UE,COMP-Commercial and Property,Reactive Repair & Maintenance,2020,2 sections of the perimeter fence damaged requiring replacement (near emergency exit) Bent and twisted. as per NAME REDACTED,16/09/2022,0000481681,590.00,Revenue,Leyland Lane Wrought Iron Gates & Railings,0
South Ribble Borough Council,http://statistics.data.gov.uk/id/local-authority/30UE,CDIG-Customer and Digital,External Contractors Charges,4570,Spec repair following warranty repairs YD19 ATY JFC18927,09/09/2022,0000481354,"1,945.62",Revenue,Lynch Truck Services Ltd,0
South Ribble Borough Council,http://statistics.data.gov.uk/id/local-authority/30UE,CDIG-Customer and Digital,GM Refurbishment,4657,"20T Grade 1 Topsoil delivered to Holme Playing Field, Bamber Bridge",02/09/2022,0000481209,540.00,Revenue,M C & M A STEWART HAULAGE LTD,0
South Ribble Borough Council,http://statistics.data.gov.uk/id/local-authority/30UE,CDIG-Customer and Digital,Materials General,4040,BLACK SACKS `KEEP SOUTH RIBBLE TIDY` in white 455x760x990-250g Bi Modal Super plus - Keep South Ribble Tidy,30/09/2022,0000481816,"7,080.00",Revenue,MacFarlane Group UK Limited,0
South Ribble Borough Council,http://statistics.data.gov.uk/id/local-authority/30UE,COMU-Communities,Capital Grant,C570,DFG WORKS FOR LEVEL ACCESS BATHROOM AT ADDRESS REDACTED. NEW PROGRESS PROPERTY SO 50% OF TOTAL,02/09/2022,0000481258,"2,747.04",Revenue,MAHONEY CONTRACTORS LTD,0
South Ribble Borough Council,http://statistics.data.gov.uk/id/local-authority/30UE,COMU-Communities,Capital Grant,C570,DFG WORKS FOR LEVEL ACCESS BATHROOM AT ADDRESS REDACTED NEW PROGRESS PROPERTY SO 50% OF TOTAL ,09/09/2022,0000481463,"2,598.34",Revenue,MAHONEY CONTRACTORS LTD,0
South Ribble Borough Council,http://statistics.data.gov.uk/id/local-authority/30UE,COMU-Communities,Capital Grant,C570,DFG WORKS FOR LEVEL ACCESS BATHROOM AT ADDRESS REDACTED. NEW PROGRESS PROPERTY SO 50% OF TOTAL,16/09/2022,0000481684,"3,423.80",Revenue,MAHONEY CONTRACTORS LTD,0
South Ribble Borough Council,http://statistics.data.gov.uk/id/local-authority/30UE,GOVE-Governance,Legal,4821,PROFESSIONAL ADVICE RELATING TO AFFORDABLE HOUSING AT PENWORTHAM (INVOICE DATED 23/09/2022),30/09/2022,0000482042,500.00,Revenue,MARTIN CARTER,0
South Ribble Borough Council,http://statistics.data.gov.uk/id/local-authority/30UE,CDIG-Customer and Digital,GM Refurbishment,4657,To remove mixed waste spoil heap from Worden Park Depot.,02/09/2022,0000481204,250.00,Revenue,Michael Alty,0
South Ribble Borough Council,http://statistics.data.gov.uk/id/local-authority/30UE,POLY-Policy,Short Course,1402,Aerial rescue training for Tree Team - NAMES REDACTED,30/09/2022,0000482037,900.00,Revenue,Millhouse Training Ltd,0
South Ribble Borough Council,http://statistics.data.gov.uk/id/local-authority/30UE,CDIG-Customer and Digital,GM Refurbishment,4657,Carry out  Annual Playground Inspections of 40 sites ,16/09/2022,0000481347,"1,800.00",Revenue,MORRAL PLAY SERVICES LTD,0
South Ribble Borough Council,http://statistics.data.gov.uk/id/local-authority/30UE,CDIG-Customer and Digital,External Contractors Charges,4570,Callou to repair compressor,16/09/2022,0000481161,464.10,Revenue,MRB Workshop Services Ltd,0
South Ribble Borough Council,http://statistics.data.gov.uk/id/local-authority/30UE,CDIG-Customer and Digital,Operational Equip & Tools,4010,6 Monthly Calibration and Preventative maintenance contract on workshop equipment.,02/09/2022,0000481287,"1,830.00",Revenue,MRB Workshop Services Ltd,0
South Ribble Borough Council,http://statistics.data.gov.uk/id/local-authority/30UE,CDIG-Customer and Digital,Mobile Devices Hardware,4244,1 x Apple Smart keyboard and folio case 1 x Logitech folio touch keyboard and folio case with trackpad - oxford grey 1 x ZAGG keyboard ,02/09/2022,0000481008,385.67,Revenue,MYPREMIER LTD,0
South Ribble Borough Council,http://statistics.data.gov.uk/id/local-authority/30UE,CDIG-Customer and Digital,Computer Equipment,4241,10 usb to lightning cables  150 usbc to aux adapters both apple,02/09/2022,0000481269,"1,177.70",Revenue,MYPREMIER LTD,0
South Ribble Borough Council,http://statistics.data.gov.uk/id/local-authority/30UE,PDEV-Planning and Development,Advertising,4841,Publication of planning publicity press notices in the LEP - April 2022 to March 2023,16/09/2022,0000480942,810.00,Revenue,National World Publishing Limited,0
South Ribble Borough Council,http://statistics.data.gov.uk/id/local-authority/30UE,PDEV-Planning and Development,Advertising,4841,Publication of planning publicity press notices in the LEP - April 2022 to March 2023,16/09/2022,0000481009,"1,134.00",Revenue,National World Publishing Limited,0
South Ribble Borough Council,http://statistics.data.gov.uk/id/local-authority/30UE,CDIG-Customer and Digital,External Contractors Charges,4570,SUPPLIER REFERENCE: GJ / CRM /133362 Set Up Fee 100% payable on order Annual Service Charge ,30/09/2022,0000481259,"1,125.00",Revenue,NEC Software Solutions UK Ltd,0
South Ribble Borough Council,http://statistics.data.gov.uk/id/local-authority/30UE,CDIG-Customer and Digital,Operational Equip & Tools,4010,2 X Genesis spraying units ,02/09/2022,0000481037,"1,995.00",Revenue,NOMIX ENVIRO LTD,0
South Ribble Borough Council,http://statistics.data.gov.uk/id/local-authority/30UE,COMP-Commercial and Property,Cap Contract Payment,C230,RIBA Stage 3 - Extra Care Development - West Paddock (includes Principle Designer Fees),02/09/2022,0000481216,"2,800.00",Revenue,NORR Consultants Limited,0
South Ribble Borough Council,http://statistics.data.gov.uk/id/local-authority/30UE,GOVE-Governance,Corp Subs to Professional Bodies,4720,FULL MEMBERSHIP SUBSCRIPTION RENEWAL - APRIL 2022 TO MARCH 2023,23/09/2022,0000481544,"4,195.05",Revenue,NORTH WEST EMPLOYERS,0
South Ribble Borough Council,http://statistics.data.gov.uk/id/local-authority/30UE,COMU-Communities,Materials General,4040,Easter HAF Mon 11th April - Thursday 14th April - 9am - 1pm Easter HAF Use of the playground - ,23/09/2022,0000481869,250.00,Revenue,NORTHBROOK PRIMARY ACADEMY,0
South Ribble Borough Council,http://statistics.data.gov.uk/id/local-authority/30UE,CDIG-Customer and Digital,Materials General,4040,SCARAB MINI SWEEPER BRUSHES - POLY/WIRE MIX MATHIEU-0120089,02/09/2022,0000480967,"1,845.28",Revenue,NORTHERN MUNICIPAL SPARES LTD,0
South Ribble Borough Council,http://statistics.data.gov.uk/id/local-authority/30UE,CDIG-Customer and Digital,Materials General,4040,CHANNEL BRUSH - 2.8 mm POLY & 3.3mm WIRE 5 row 700/1000mm - MIDI SWEEPER 78399/2,16/09/2022,0000481417,769.15,Revenue,NORTHERN MUNICIPAL SPARES LTD,0
South Ribble Borough Council,http://statistics.data.gov.uk/id/local-authority/30UE,CDIG-Customer and Digital,Materials General,4040,Delivery,16/09/2022,0000481417,58.32,Revenue,NORTHERN MUNICIPAL SPARES LTD,0
South Ribble Borough Council,http://statistics.data.gov.uk/id/local-authority/30UE,COMP-Commercial and Property,Misc Capital Payments,C234,Northwest Portable toilet company � provision of temp toilets for worden caf�. As per NAME REDACTED request ,09/09/2022,0000481267,400.00,Revenue,Northwest Portable Toilet Company Ltd,0
South Ribble Borough Council,http://statistics.data.gov.uk/id/local-authority/30UE,COMP-Commercial and Property,Misc Capital Payments,C234,Northwest Portable toilet company � provision of temp toilets for worden caf�. As per NAME REDACTED request ,09/09/2022,0000481288,"1,600.00",Revenue,Northwest Portable Toilet Company Ltd,0
South Ribble Borough Council,http://statistics.data.gov.uk/id/local-authority/30UE,PDEV-Planning and Development,Misc Capital Payments,C234,Provision of temp toilets for Worden Park Cafe.  To cover extra servicing over the summer holidays,16/09/2022,0000481369,"1,048.00",Revenue,Northwest Portable Toilet Company Ltd,0
South Ribble Borough Council,http://statistics.data.gov.uk/id/local-authority/30UE,CDIG-Customer and Digital,Parking Attendants,4514,Variable Fee Car Park Enforcement August 2022 - Variable Recharge Items,30/09/2022,0000481793,"1,735.49",Revenue,NSL LTD,0
South Ribble Borough Council,http://statistics.data.gov.uk/id/local-authority/30UE,CDIG-Customer and Digital,Cash Collection Charges Car Parks,4855,Variable Fee Car Park Enforcement August 2022 - Fixed Recharge Items,30/09/2022,0000481793,749.58,Revenue,NSL LTD,0
South Ribble Borough Council,http://statistics.data.gov.uk/id/local-authority/30UE,COMP-Commercial and Property,Consultancy Fees,4541,The undertaking of Phase one and Phase two of the dilapidations report at Forward Industrial Estate.,30/09/2022,0000481910,"3,027.90",Revenue,NSW Commercial Ltd,0
South Ribble Borough Council,http://statistics.data.gov.uk/id/local-authority/30UE,CDIG-Customer and Digital,Technical Support,4246,Out of hours Emergency Firewall Support,16/09/2022,0000481101,250.00,Revenue,NVIRON LTD,0
South Ribble Borough Council,http://statistics.data.gov.uk/id/local-authority/30UE,COMP-Commercial and Property,Planned Annual Repair & Maintenance,2021,2022/2023  Annual Inspection and test of the Height Safety System at the Civic Centre 001 test and inspection of 1-6 cable fall prohibit ,16/09/2022,0000481595,319.00,Revenue,OMEGA RED GROUP LTD,0
South Ribble Borough Council,http://statistics.data.gov.uk/id/local-authority/30UE,CDIG-Customer and Digital,Cash Collection Charges Car Parks,4855,RingGo Fee Transactions - August 2022,02/09/2022,0000481058,98.55,Revenue,Park Now Limited,0
South Ribble Borough Council,http://statistics.data.gov.uk/id/local-authority/30UE,CDIG-Customer and Digital,Cash Collection Charges Car Parks,4855,"RingGo text summary, Reminder & Processing fees- August 2022",02/09/2022,0000481058,194.02,Revenue,Park Now Limited,0
South Ribble Borough Council,http://statistics.data.gov.uk/id/local-authority/30UE,CDIG-Customer and Digital,Cash Collection Charges Car Parks,4855,RingGo Fee Transactions - September 2022,30/09/2022,0000482041,98.40,Revenue,Park Now Limited,0
South Ribble Borough Council,http://statistics.data.gov.uk/id/local-authority/30UE,CDIG-Customer and Digital,Cash Collection Charges Car Parks,4855,"RingGo Text Summary, Reminder & 
Processing Fees - September 2022",30/09/2022,0000482041,192.75,Revenue,Park Now Limited,0
South Ribble Borough Council,http://statistics.data.gov.uk/id/local-authority/30UE,COMP-Commercial and Property,Consumable Clng Materials,2711,"BA030-75	JANGRO GLASS & MIRROR CLEANER 750ML",02/09/2022,0000479794,15.72,Revenue,Pattersons (Bristol) Ltd,0
South Ribble Borough Council,http://statistics.data.gov.uk/id/local-authority/30UE,COMP-Commercial and Property,Consumable Clng Materials,2711,"AA201	JANGRO MICRO MINI TOILET ROLL 100M X 90MM (24)",02/09/2022,0000479794,117.00,Revenue,Pattersons (Bristol) Ltd,0
South Ribble Borough Council,http://statistics.data.gov.uk/id/local-authority/30UE,COMP-Commercial and Property,Consumable Clng Materials,2711,"BK101-50	JANGRO PINK PEARLISED HAND SOAP 500ML",02/09/2022,0000479794,3.14,Revenue,Pattersons (Bristol) Ltd,0
South Ribble Borough Council,http://statistics.data.gov.uk/id/local-authority/30UE,COMP-Commercial and Property,Consumable Clng Materials,2711,"CG106-Y	EXEL MICROFIBRE SUPER CLOTH (10)",02/09/2022,0000479794,15.60,Revenue,Pattersons (Bristol) Ltd,0
South Ribble Borough Council,http://statistics.data.gov.uk/id/local-authority/30UE,COMP-Commercial and Property,Consumable Clng Materials,2711,"CG106-B	EXEL MICROFIBRE SUPER CLOTH 40X 40CM BLUE (10)",02/09/2022,0000479794,15.60,Revenue,Pattersons (Bristol) Ltd,0
South Ribble Borough Council,http://statistics.data.gov.uk/id/local-authority/30UE,COMP-Commercial and Property,Consumable Clng Materials,2711,"AE234	TORK S-FOLD HAND TOWEL 1PLY BLUE (4000SHT)",02/09/2022,0000479794,115.60,Revenue,Pattersons (Bristol) Ltd,0
South Ribble Borough Council,http://statistics.data.gov.uk/id/local-authority/30UE,COMP-Commercial and Property,Consumable Clng Materials,2711,"CM180	JANGRO REFUSE SACKS 18X29X39 180G HEAVY DUTY BLACK (200)",02/09/2022,0000479794,87.99,Revenue,Pattersons (Bristol) Ltd,0
South Ribble Borough Council,http://statistics.data.gov.uk/id/local-authority/30UE,COMP-Commercial and Property,Consumable Clng Materials,2711,"BK104-5	JANGRO HAND SOAP UNPERFUMED 5LTR",02/09/2022,0000479794,9.82,Revenue,Pattersons (Bristol) Ltd,0
South Ribble Borough Council,http://statistics.data.gov.uk/id/local-authority/30UE,COMP-Commercial and Property,Consumable Clng Materials,2711,"CG106-G	EXEL MICROFIBRE SUPER CLOTH 40X 40CM GREEN     (10)",02/09/2022,0000479794,3.90,Revenue,Pattersons (Bristol) Ltd,0
South Ribble Borough Council,http://statistics.data.gov.uk/id/local-authority/30UE,COMP-Commercial and Property,Consumable Clng Materials,2711,"EC106	DURACELL BATTERIES MN1500c AA (4)",02/09/2022,0000479794,9.68,Revenue,Pattersons (Bristol) Ltd,0
South Ribble Borough Council,http://statistics.data.gov.uk/id/local-authority/30UE,COMP-Commercial and Property,Consumable Clng Materials,2711,"BC045-1	JANGRO TOILET & WASHROOM CLEANER DESCALER  1 LTR",02/09/2022,0000479794,11.88,Revenue,Pattersons (Bristol) Ltd,0
South Ribble Borough Council,http://statistics.data.gov.uk/id/local-authority/30UE,COMP-Commercial and Property,Consumable Clng Materials,2711,"BC040-1	JANGRO PERFUMED TOILET CLEANER 1LTR",02/09/2022,0000479794,10.80,Revenue,Pattersons (Bristol) Ltd,0
South Ribble Borough Council,http://statistics.data.gov.uk/id/local-authority/30UE,COMP-Commercial and Property,Consumable Clng Materials,2711,"BB034-5	JANGRO CONCENTRATED GREEN DETERGENT 20% 5LTR",02/09/2022,0000479794,7.02,Revenue,Pattersons (Bristol) Ltd,0
South Ribble Borough Council,http://statistics.data.gov.uk/id/local-authority/30UE,COMP-Commercial and Property,Consumable Clng Materials,2711,"BG045	JANGRO CLEANER POLISH 400ML AEROSOL",02/09/2022,0000479794,12.36,Revenue,Pattersons (Bristol) Ltd,0
South Ribble Borough Council,http://statistics.data.gov.uk/id/local-authority/30UE,COMP-Commercial and Property,Consumable Clng Materials,2711,"BA048-5         JANGRO CLEANER DISINFECTANT CONCENTRATE 5LTR, MULTI PURPOSE DETERGENT",02/09/2022,0000479794,10.66,Revenue,Pattersons (Bristol) Ltd,0
South Ribble Borough Council,http://statistics.data.gov.uk/id/local-authority/30UE,COMP-Commercial and Property,Consumable Clng Materials,2711,BG030-MB      GIANT AEROSOL AIR FRESHENER 750ML VARIOUS FRAGRANCES,02/09/2022,0000479794,32.52,Revenue,Pattersons (Bristol) Ltd,0
South Ribble Borough Council,http://statistics.data.gov.uk/id/local-authority/30UE,COMP-Commercial and Property,Consumable Clng Materials,2711,"HA015-G        EXEL PY MOP HEAD 250 GRM,  COLOUR CODED - GREEN",02/09/2022,0000479794,7.70,Revenue,Pattersons (Bristol) Ltd,0
South Ribble Borough Council,http://statistics.data.gov.uk/id/local-authority/30UE,COMP-Commercial and Property,Consumable Clng Materials,2711,"HA015-R       EXEL PY MOP HEAD 250 GRM,  COLOUR CODED - RED",02/09/2022,0000479794,7.70,Revenue,Pattersons (Bristol) Ltd,0
South Ribble Borough Council,http://statistics.data.gov.uk/id/local-authority/30UE,COMP-Commercial and Property,Consumable Clng Materials,2711,FA173       HEPAFLO CLOTH VACUUM BAG FOR NUMATIC (10),02/09/2022,0000479794,8.24,Revenue,Pattersons (Bristol) Ltd,0
South Ribble Borough Council,http://statistics.data.gov.uk/id/local-authority/30UE,COMP-Commercial and Property,Consumable Clng Materials,2711,"SB-00010	Sebo Hoover Bags ",02/09/2022,0000479794,15.30,Revenue,Pattersons (Bristol) Ltd,0
South Ribble Borough Council,http://statistics.data.gov.uk/id/local-authority/30UE,COMP-Commercial and Property,Consumable Clng Materials,2711,BC206-MG       JANGRO ENVIRO SLANT6 URINAL SCREEN MANGO x 10,02/09/2022,0000479794,175.00,Revenue,Pattersons (Bristol) Ltd,0
South Ribble Borough Council,http://statistics.data.gov.uk/id/local-authority/30UE,COMP-Commercial and Property,Operational Equip & Tools,4010,BL025        Jangro Vertical Baby Changing Unit,02/09/2022,0000480307,550.00,Revenue,Pattersons (Bristol) Ltd,0
South Ribble Borough Council,http://statistics.data.gov.uk/id/local-authority/30UE,COMP-Commercial and Property,Consumable Clng Materials,2711,"CG106-G	EXEL MICROFIBRE SUPER CLOTH 40X 40CM GREEN     (10)",02/09/2022,0000480307,11.70,Revenue,Pattersons (Bristol) Ltd,0
South Ribble Borough Council,http://statistics.data.gov.uk/id/local-authority/30UE,CDIG-Customer and Digital,Materials General,4040,AIR FRESHENER - FRESH LINEN 400ml BG040 - FL,16/09/2022,0000480842,8.80,Revenue,Pattersons (Bristol) Ltd,0
South Ribble Borough Council,http://statistics.data.gov.uk/id/local-authority/30UE,CDIG-Customer and Digital,Operational Equip & Tools,4010, EXEL PY MOP HEADS (RED or GREEN) 250g HA015-B or HA015-G,16/09/2022,0000480842,6.16,Revenue,Pattersons (Bristol) Ltd,0
South Ribble Borough Council,http://statistics.data.gov.uk/id/local-authority/30UE,CDIG-Customer and Digital,Materials General,4040,TOILET TISSUE JANGRO - 2 ply AB102,16/09/2022,0000480842,107.10,Revenue,Pattersons (Bristol) Ltd,0
South Ribble Borough Council,http://statistics.data.gov.uk/id/local-authority/30UE,CDIG-Customer and Digital,Clothing and Uniforms,4410, DISPOSABLE GLOVES NITRILE (BOX- 100) LARGE  DG150-L,16/09/2022,0000480842,166.50,Revenue,Pattersons (Bristol) Ltd,0
South Ribble Borough Council,http://statistics.data.gov.uk/id/local-authority/30UE,CDIG-Customer and Digital,Materials General,4040, JANGRO CONCENTRATED CLEANER DISINFECTANT  5Ltr BA048-5,16/09/2022,0000480842,42.64,Revenue,Pattersons (Bristol) Ltd,0
South Ribble Borough Council,http://statistics.data.gov.uk/id/local-authority/30UE,CDIG-Customer and Digital,Materials General,4040, JANGRO CLEANER DISINFECTANT 750ml BA048-75,16/09/2022,0000480842,13.32,Revenue,Pattersons (Bristol) Ltd,0
South Ribble Borough Council,http://statistics.data.gov.uk/id/local-authority/30UE,COMP-Commercial and Property,Consumable Clng Materials,2711,JANGRO MULTI-SURFACE POLISH 750ML x1 BA020-75,02/09/2022,0000481163,1.58,Revenue,Pattersons (Bristol) Ltd,0
South Ribble Borough Council,http://statistics.data.gov.uk/id/local-authority/30UE,COMP-Commercial and Property,Consumable Clng Materials,2711,JANGRO DISHWASH DETERGENT FOR HARD WATER 5 LTR x3  BB070-5,02/09/2022,0000481163,29.19,Revenue,Pattersons (Bristol) Ltd,0
South Ribble Borough Council,http://statistics.data.gov.uk/id/local-authority/30UE,COMP-Commercial and Property,Consumable Clng Materials,2711,JANGRO GLASS & MIRROR CLEANER 750ML x12 BA030-75,02/09/2022,0000481163,15.72,Revenue,Pattersons (Bristol) Ltd,0
South Ribble Borough Council,http://statistics.data.gov.uk/id/local-authority/30UE,COMP-Commercial and Property,Consumable Clng Materials,2711,JANGRO THICKENED BLEACH 750ML x24 BA030-75,02/09/2022,0000481163,12.00,Revenue,Pattersons (Bristol) Ltd,0
South Ribble Borough Council,http://statistics.data.gov.uk/id/local-authority/30UE,COMP-Commercial and Property,Consumable Clng Materials,2711,JANGRO MICRO MINI TOILET ROLL 100M X 90MM (24) x15 AA201,02/09/2022,0000481163,246.00,Revenue,Pattersons (Bristol) Ltd,0
South Ribble Borough Council,http://statistics.data.gov.uk/id/local-authority/30UE,COMP-Commercial and Property,Consumable Clng Materials,2711,JANGRO PINK PEARLISED HAND SOAP 500ML x8 BK101-50,02/09/2022,0000481163,9.76,Revenue,Pattersons (Bristol) Ltd,0
South Ribble Borough Council,http://statistics.data.gov.uk/id/local-authority/30UE,COMP-Commercial and Property,Consumable Clng Materials,2711,TORK S-FOLD HAND TOWEL 1PLY BLUE (4000SHT) x10 AE234,02/09/2022,0000481163,201.10,Revenue,Pattersons (Bristol) Ltd,0
South Ribble Borough Council,http://statistics.data.gov.uk/id/local-authority/30UE,COMP-Commercial and Property,Consumable Clng Materials,2711,JANGRO TOILET & WASHROOM CLEANER DESCALER  1 LTR x1 BC045-1,02/09/2022,0000481163,1.13,Revenue,Pattersons (Bristol) Ltd,0
South Ribble Borough Council,http://statistics.data.gov.uk/id/local-authority/30UE,COMP-Commercial and Property,Consumable Clng Materials,2711,EXEL MICROFIBRE SUPER CLOTH 40X 40CM Blue (10) x1 CG106-PSC992646,02/09/2022,0000481163,3.90,Revenue,Pattersons (Bristol) Ltd,0
South Ribble Borough Council,http://statistics.data.gov.uk/id/local-authority/30UE,COMP-Commercial and Property,Consumable Clng Materials,2711,EXEL MICROFIBRE SUPER CLOTH 40X 40CM PINK (10) x1 CG106-P,02/09/2022,0000481163,3.90,Revenue,Pattersons (Bristol) Ltd,0
South Ribble Borough Council,http://statistics.data.gov.uk/id/local-authority/30UE,COMP-Commercial and Property,Consumable Clng Materials,2711,JANGRO PERFUMED TOILET CLEANER 1LTR x1 BC040-1,02/09/2022,0000481163,0.90,Revenue,Pattersons (Bristol) Ltd,0
South Ribble Borough Council,http://statistics.data.gov.uk/id/local-authority/30UE,COMP-Commercial and Property,Consumable Clng Materials,2711,"JANGRO PERFUMED GENERAL PURPOSE FLORAL DISINFECTANT SUITABLE FOR USE ON FLOORS, TOILETS, SINKS & DRAINS ",02/09/2022,0000481163,4.18,Revenue,Pattersons (Bristol) Ltd,0
South Ribble Borough Council,http://statistics.data.gov.uk/id/local-authority/30UE,COMP-Commercial and Property,Consumable Clng Materials,2711,"EXEL PY MOP HEAD 200 GRM, COLOUR CODED -  BLUE/GREEN/RED/YELLOW X10  HA015-R",02/09/2022,0000481163,7.70,Revenue,Pattersons (Bristol) Ltd,0
South Ribble Borough Council,http://statistics.data.gov.uk/id/local-authority/30UE,COMP-Commercial and Property,Consumable Clng Materials,2711,"EXEL PY MOP HEAD 250 GRM,  COLOUR CODED - BLUE/GREEN/RED/YELLOW X10 HA015-B",02/09/2022,0000481163,7.70,Revenue,Pattersons (Bristol) Ltd,0
South Ribble Borough Council,http://statistics.data.gov.uk/id/local-authority/30UE,COMP-Commercial and Property,Consumable Clng Materials,2711,"SEBO 3 LAYER VACUUM BAGS FOR FELIX/DART VACUUM CLEANERS, PACK OF 10 X1 FA351",02/09/2022,0000481163,7.65,Revenue,Pattersons (Bristol) Ltd,0
South Ribble Borough Council,http://statistics.data.gov.uk/id/local-authority/30UE,COMP-Commercial and Property,Consumable Clng Materials,2711,JANGRO LEMON OR PNE MULTI SURFACE FLOOR GEL X1 BD041-5,02/09/2022,0000481163,4.05,Revenue,Pattersons (Bristol) Ltd,0
South Ribble Borough Council,http://statistics.data.gov.uk/id/local-authority/30UE,COMP-Commercial and Property,Consumable Clng Materials,2711,"CREAM CLEANER, REMOVES GREASE & GRIME,  500ML X1 BB050-50",02/09/2022,0000481163,0.75,Revenue,Pattersons (Bristol) Ltd,0
South Ribble Borough Council,http://statistics.data.gov.uk/id/local-authority/30UE,COMP-Commercial and Property,Consumable Clng Materials,2711,Feather Duster x1 FD000002,02/09/2022,0000481163,4.31,Revenue,Pattersons (Bristol) Ltd,0
South Ribble Borough Council,http://statistics.data.gov.uk/id/local-authority/30UE,COMP-Commercial and Property,Reactive Repair & Maintenance,2020,10 x EPC inspections at Boxer Place as per NAME REDACTED request,23/09/2022,0000481690,"1,850.00",Revenue,Paul Foster and Co Ltd,0
South Ribble Borough Council,http://statistics.data.gov.uk/id/local-authority/30UE,COMP-Commercial and Property,Reactive Repair & Maintenance,2020,"Additional DDA works @ Moss side depot, as per NAME REDACTED",16/09/2022,0000481691,"9,440.00",Revenue,PDP PROPERTY SERVICES LTD,0
South Ribble Borough Council,http://statistics.data.gov.uk/id/local-authority/30UE,COMP-Commercial and Property,Reactive Repair & Maintenance,2020,Decoration Changing Rooms Quote Number QU-0641 Moss side depot as per NAME REDACTED request ,30/09/2022,0000482020,"2,680.00",Revenue,PDP PROPERTY SERVICES LTD,0
South Ribble Borough Council,http://statistics.data.gov.uk/id/local-authority/30UE,COMP-Commercial and Property,Reactive Repair & Maintenance,2020,Flooring Changing rooms / disabled w/c Uplift and make good floor/screed Supply and fit new Altro Walkway with siton skirting ,30/09/2022,0000482070,"3,368.35",Revenue,PDP PROPERTY SERVICES LTD,0
South Ribble Borough Council,http://statistics.data.gov.uk/id/local-authority/30UE,COMP-Commercial and Property,Misc Capital Payments,C234,Supply of fire extinguishers for Worden (second batch) as per NAME REDACTED,02/09/2022,0000481260,573.00,Revenue,PENNINE FIRE & SAFETY LIMITED,0
South Ribble Borough Council,http://statistics.data.gov.uk/id/local-authority/30UE,CDIG-Customer and Digital,Materials General,4040,1Kg Dry Powder Extinguisher,16/09/2022,0000481303,612.50,Revenue,PENNINE FIRE & SAFETY LIMITED,0
South Ribble Borough Council,http://statistics.data.gov.uk/id/local-authority/30UE,CDIG-Customer and Digital,Materials General,4040,2kg Dry Ppwder Extinguisher,16/09/2022,0000481303,258.50,Revenue,PENNINE FIRE & SAFETY LIMITED,0
South Ribble Borough Council,http://statistics.data.gov.uk/id/local-authority/30UE,CDIG-Customer and Digital,Materials General,4040,6kg Dry Powder Extinguisher,16/09/2022,0000481303,80.50,Revenue,PENNINE FIRE & SAFETY LIMITED,0
South Ribble Borough Council,http://statistics.data.gov.uk/id/local-authority/30UE,CDIG-Customer and Digital,Cap Contract Payment,C230,Fire safety equipment for BB playing pitch hub pavilion,30/09/2022,0000481948,649.25,Revenue,PENNINE FIRE & SAFETY LIMITED,0
South Ribble Borough Council,http://statistics.data.gov.uk/id/local-authority/30UE,COMP-Commercial and Property,Fire Extinguishers - R&M,2037,Annual Contract  2022/2023 for the inspection of Portable Fire Extinguishers and Fire Blankets at various sites,30/09/2022,0000481963,41.45,Revenue,PENNINE FIRE & SAFETY LIMITED,0
South Ribble Borough Council,http://statistics.data.gov.uk/id/local-authority/30UE,COMP-Commercial and Property,Fire Extinguishers - R&M,2037,Annual Contract for 2022/2023 for the inspection of the Portable Fire Extinguishers and Fire Blankets at various sites Civic Centre,30/09/2022,0000481963,301.05,Revenue,PENNINE FIRE & SAFETY LIMITED,0
South Ribble Borough Council,http://statistics.data.gov.uk/id/local-authority/30UE,COMP-Commercial and Property,Fire Extinguishers - R&M,2037,Annual Contract for 2022/2023 for the inspection of the Portable Fire Extinguishers and Fire Blankets at various sites Higher Walton Community,30/09/2022,0000481963,16.20,Revenue,PENNINE FIRE & SAFETY LIMITED,0
South Ribble Borough Council,http://statistics.data.gov.uk/id/local-authority/30UE,COMP-Commercial and Property,Fire Extinguishers - R&M,2037,Annual Contract for 2022/2023 for the inspection of the Portable Fire Extinguishers and Fire Blankets at various sites Holland House Farm Pavillion,30/09/2022,0000481963,3.75,Revenue,PENNINE FIRE & SAFETY LIMITED,0
South Ribble Borough Council,http://statistics.data.gov.uk/id/local-authority/30UE,COMP-Commercial and Property,Fire Extinguishers - R&M,2037,Annual Contract for 2022/2023 for the inspection of the Portable Fire Extinguishers and Fire Blankets at various sites Hurst Grange Park,30/09/2022,0000481963,30.75,Revenue,PENNINE FIRE & SAFETY LIMITED,0
South Ribble Borough Council,http://statistics.data.gov.uk/id/local-authority/30UE,COMP-Commercial and Property,Fire Extinguishers - R&M,2037,Annual Contract for 2022/2023 for the inspection of the Portable Fire Extinguishers and Fire Blankets at various sites Leyland Indoor Market,30/09/2022,0000481963,64.70,Revenue,PENNINE FIRE & SAFETY LIMITED,0
South Ribble Borough Council,http://statistics.data.gov.uk/id/local-authority/30UE,COMP-Commercial and Property,Fire Extinguishers - R&M,2037,Annual Contract for 2022/2023 for the inspection of the Portable Fire Extinguishers and Fire Blankets at various sites Middleforth Garage Toilet,30/09/2022,0000481963,3.75,Revenue,PENNINE FIRE & SAFETY LIMITED,0
South Ribble Borough Council,http://statistics.data.gov.uk/id/local-authority/30UE,COMP-Commercial and Property,Fire Extinguishers - R&M,2037,Annual Contract for 2022/2023 for the inspection of the Portable Fire Extinguishers and Fire Blankets at various sites Moss Side Community ,30/09/2022,0000481963,15.75,Revenue,PENNINE FIRE & SAFETY LIMITED,0
South Ribble Borough Council,http://statistics.data.gov.uk/id/local-authority/30UE,COMP-Commercial and Property,Fire Extinguishers - R&M,2037,Annual Contract for 2022/2023 for the inspection of the Portable Fire Extinguishers and Fire Blankets at various sites Moss Side Depot,30/09/2022,0000481963,181.35,Revenue,PENNINE FIRE & SAFETY LIMITED,0
South Ribble Borough Council,http://statistics.data.gov.uk/id/local-authority/30UE,COMP-Commercial and Property,Fire Extinguishers - R&M,2037,Annual Contract for 2022/2023  for the inspection of the Portable Fire Extinguishers and Fire Blankets at various sites Ranger`s Office,30/09/2022,0000481963,11.25,Revenue,PENNINE FIRE & SAFETY LIMITED,0
South Ribble Borough Council,http://statistics.data.gov.uk/id/local-authority/30UE,COMP-Commercial and Property,Fire Extinguishers - R&M,2037,Annual Contract for 2022/2023 for the inspection of the Portable Fire Extinguishers and Fire Blankets at various sites Welcome Hall Community ,30/09/2022,0000481963,12.00,Revenue,PENNINE FIRE & SAFETY LIMITED,0
South Ribble Borough Council,http://statistics.data.gov.uk/id/local-authority/30UE,COMU-Communities,Core Fund,4861,A grant application referred from Boost Fund Plus to the Penwortham Community Hub for new boxing gloves and bags for the gym.,16/09/2022,0000481474,"1,000.00",Revenue,Penwortham Boxing Club CIC,0
South Ribble Borough Council,http://statistics.data.gov.uk/id/local-authority/30UE,COMU-Communities,Professional Fees,4510,HAF activity provider for summer camps. Weeks 1 and 2. 2-12 August,16/09/2022,0000481592,"5,760.00",Revenue,Penwortham Boxing Club CIC,0
South Ribble Borough Council,http://statistics.data.gov.uk/id/local-authority/30UE,COMU-Communities,Professional Fees,4510,HAF activity provider for summer camps. Weeks 3 and 4. 16-26 August,16/09/2022,0000481592,"5,760.00",Revenue,Penwortham Boxing Club CIC,0
South Ribble Borough Council,http://statistics.data.gov.uk/id/local-authority/30UE,COMU-Communities,Core Fund,4861,A grant application referred from Boost Fund Plus to the Penwortham Community Hub for new shelving for Penwortham Library,16/09/2022,0000481471,"1,000.00",Revenue,PENWORTHAM TOWN COUNCIL,0
South Ribble Borough Council,http://statistics.data.gov.uk/id/local-authority/30UE,COMU-Communities,Core Fund,4861,A grant application referred from Boost Fund Plus to the Penwortham Community Hub to raise more awareness of Penwortham in Bloom ,16/09/2022,0000481472,"1,000.00",Revenue,PENWORTHAM TOWN COUNCIL,0
South Ribble Borough Council,http://statistics.data.gov.uk/id/local-authority/30UE,POLY-Policy,Occupational Health,1408,Occupational Health Charges - Invoice No 118609,16/09/2022,0000481743,303.50,Revenue,People Asset Management,0
South Ribble Borough Council,http://statistics.data.gov.uk/id/local-authority/30UE,CDIG-Customer and Digital,Contract Printing,4127,Provision & Posting of Garden Waste Permits June - Dec 2022,16/09/2022,0000481735,454.02,Revenue,Permiserv Ltd,0
South Ribble Borough Council,http://statistics.data.gov.uk/id/local-authority/30UE,PDEV-Planning and Development,Disclosure Barring,4522,gov fee,16/09/2022,0000481093,380.00,Revenue,Personnel Checks,0
South Ribble Borough Council,http://statistics.data.gov.uk/id/local-authority/30UE,PDEV-Planning and Development,Disclosure Barring,4522,admin fee,16/09/2022,0000481093,133.30,Revenue,Personnel Checks,0
South Ribble Borough Council,http://statistics.data.gov.uk/id/local-authority/30UE,PDEV-Planning and Development,Disclosure Barring,4522,gov fee,23/09/2022,0000481529,532.00,Revenue,Personnel Checks,0
South Ribble Borough Council,http://statistics.data.gov.uk/id/local-authority/30UE,PDEV-Planning and Development,Disclosure Barring,4522,admin fee,23/09/2022,0000481529,186.62,Revenue,Personnel Checks,0
South Ribble Borough Council,http://statistics.data.gov.uk/id/local-authority/30UE,COMP-Commercial and Property,Rental,4012,"2022 / 2023 annual contract for the provision of sanitary services to Moss Side Depot, 81 Bison Place, Leyland as per your ref 105797",09/09/2022,0000481346,413.76,Revenue,PHS GROUP PLC,0
South Ribble Borough Council,http://statistics.data.gov.uk/id/local-authority/30UE,COMP-Commercial and Property,Rental,4012,"2022 / 2023 annual contract for the provision of sanitary services to Moss Side Depot, 81 Bison Place, Leyland as per your ref 105797",09/09/2022,0000481506,663.04,Revenue,PHS GROUP PLC,0
South Ribble Borough Council,http://statistics.data.gov.uk/id/local-authority/30UE,COMU-Communities,Core Fund,4861,Manufacture and installation of Penwortham Welcome Feature (Deer),23/09/2022,0000481826,"6,000.00",Revenue,Pip Cottage,0
South Ribble Borough Council,http://statistics.data.gov.uk/id/local-authority/30UE,CDIG-Customer and Digital,Materials General,4040,Hydraulic pipe,02/09/2022,0000480971,281.28,Revenue,Pirtek,0
South Ribble Borough Council,http://statistics.data.gov.uk/id/local-authority/30UE,PDEV-Planning and Development,Agency Staff,1121,Planning Enforcement consultancy services,16/09/2022,0000481187,"1,786.00",Revenue,Planning Control & PACE Solutions,0
South Ribble Borough Council,http://statistics.data.gov.uk/id/local-authority/30UE,PDEV-Planning and Development,Operational Equip & Tools,4010,Annual subscription - Planning Jungle website,09/09/2022,0000481512,300.00,Revenue,PLANNING JUNGLE LIMITED,0
South Ribble Borough Council,http://statistics.data.gov.uk/id/local-authority/30UE,COMU-Communities,Security Measures,4272,Cross Street Door Repairs,23/09/2022,0000481547,475.00,Revenue,PRESTON CARE & REPAIR,0
South Ribble Borough Council,http://statistics.data.gov.uk/id/local-authority/30UE,COMU-Communities,Core Fund,4861,Love Where You Live Campaign for Leyland and Farington - Posters and Banners as per discussed and agreed,16/09/2022,0000481351,"1,515.22",Revenue,Preston City Council,0
South Ribble Borough Council,http://statistics.data.gov.uk/id/local-authority/30UE,COMU-Communities,Publicity & Promotion,4842,To Supply: A3 1pp printed full colour on carbon neutral* Synap Poly Prop  375gsm 1828x914mm 1pp printed full colour on vinyl banner ,09/09/2022,0000481357,263.10,Revenue,Preston City Council,0
South Ribble Borough Council,http://statistics.data.gov.uk/id/local-authority/30UE,COMU-Communities,Core Fund,4861,Love where you live posters,16/09/2022,0000481387,"1,494.40",Revenue,Preston City Council,0
South Ribble Borough Council,http://statistics.data.gov.uk/id/local-authority/30UE,GOVE-Governance,Contract Printing,4127,PRINTING OF STAGE 2 CANVASS COMMUNICATIONS AND ENVELOPES (IN LINE WITH C ON ORDER ACKNOWLEDGEMENT 9582),23/09/2022,0000481807,"1,419.16",Revenue,PRINT IMAGE NETWORK LTD,0
South Ribble Borough Council,http://statistics.data.gov.uk/id/local-authority/30UE,CDIG-Customer and Digital,Cap Contract Payment,C230,"Refurbishment of Playground at Moss Side Park, Leyland",16/09/2022,0000481225,"11,951.53",Revenue,PROLUDIC LTD,0
South Ribble Borough Council,http://statistics.data.gov.uk/id/local-authority/30UE,CDIG-Customer and Digital,Cap Contract Payment,C230,"Refurbishment of Playground at Moss Side Park, Leyland",16/09/2022,0000481226,"163,928.31",Revenue,PROLUDIC LTD,0
South Ribble Borough Council,http://statistics.data.gov.uk/id/local-authority/30UE,COMP-Commercial and Property,Fire Extinguishers - R&M,2037, for Hurst Grange Coach house � fire alarm monitoring as per quote 21-N17901-Rev-0 dated 26th Nov 2021 as per NAME REDACTED,16/09/2022,0000481736,345.00,Revenue,Protec Fire Protection Plc,0
South Ribble Borough Council,http://statistics.data.gov.uk/id/local-authority/30UE,CDIG-Customer and Digital,GM Refurbishment,4657,Replacement of rear timber gates at Hurst Grange Park Coach House as per quote dated 14/06/22 REF LRS Q2015,02/09/2022,0000481122,"1,250.00",Revenue,PSR & Sons Joiners & Building Contractors,0
South Ribble Borough Council,http://statistics.data.gov.uk/id/local-authority/30UE,CDIG-Customer and Digital,GM Refurbishment,4657,LABOUR,02/09/2022,0000481122,60.00,Revenue,PSR & Sons Joiners & Building Contractors,0
South Ribble Borough Council,http://statistics.data.gov.uk/id/local-authority/30UE,COMP-Commercial and Property,Reactive Repair & Maintenance,2020,To repair steps at Broadfield Community Gardens as per NAME REDACTED,02/09/2022,0000481123,410.00,Revenue,PSR & Sons Joiners & Building Contractors,0
South Ribble Borough Council,http://statistics.data.gov.uk/id/local-authority/30UE,COMP-Commercial and Property,Reactive Repair & Maintenance,2020,REF: REMEDIAL WORKS TO WORDEN PARK,02/09/2022,0000481261,180.00,Revenue,PSR & Sons Joiners & Building Contractors,0
South Ribble Borough Council,http://statistics.data.gov.uk/id/local-authority/30UE,COMP-Commercial and Property,Reactive Repair & Maintenance,2020,REF: REMEDIAL WORKS TO CIVIC CENTRE 3RD FLOOR RE: WINDOWS OUR REF LRS Q 6092 8 TH JULY 2022,02/09/2022,0000481261,190.00,Revenue,PSR & Sons Joiners & Building Contractors,0
South Ribble Borough Council,http://statistics.data.gov.uk/id/local-authority/30UE,COMP-Commercial and Property,Reactive Repair & Maintenance,2020,REF: REMEDIAL WORKS TO MOSS SIDE COMMUNITY CENTRE OUR REF LRS Q 6182 4 TH AUGUST 202 RE: OPENING,02/09/2022,0000481261,630.00,Revenue,PSR & Sons Joiners & Building Contractors,0
South Ribble Borough Council,http://statistics.data.gov.uk/id/local-authority/30UE,COMP-Commercial and Property,Reactive Repair & Maintenance,2020,LABOUR Line 1,02/09/2022,0000481261,15.00,Revenue,PSR & Sons Joiners & Building Contractors,0
South Ribble Borough Council,http://statistics.data.gov.uk/id/local-authority/30UE,COMP-Commercial and Property,Reactive Repair & Maintenance,2020,LABOUR Line2,02/09/2022,0000481261,20.00,Revenue,PSR & Sons Joiners & Building Contractors,0
South Ribble Borough Council,http://statistics.data.gov.uk/id/local-authority/30UE,COMP-Commercial and Property,Reactive Repair & Maintenance,2020,LABOUR Line 3,02/09/2022,0000481261,50.00,Revenue,PSR & Sons Joiners & Building Contractors,0
South Ribble Borough Council,http://statistics.data.gov.uk/id/local-authority/30UE,COMP-Commercial and Property,Reactive Repair & Maintenance,2020,REF: REMEDIAL WORKS TO CIVIC CENTREOUR REF LRS Q 6234 19 TH AUGUST 2022 As NAME REDACTED RE: WINDOWS,02/09/2022,0000481262,320.00,Revenue,PSR & Sons Joiners & Building Contractors,0
South Ribble Borough Council,http://statistics.data.gov.uk/id/local-authority/30UE,COMP-Commercial and Property,Reactive Repair & Maintenance,2020,LABOUR,02/09/2022,0000481262,40.00,Revenue,PSR & Sons Joiners & Building Contractors,0
South Ribble Borough Council,http://statistics.data.gov.uk/id/local-authority/30UE,COMP-Commercial and Property,Reactive Repair & Maintenance,2020,REF: REMEDIAL WORKS MOSS LANE DEPO as per NAME REDACTED request and OUR REF LRS Q 6110,23/09/2022,0000481765,230.00,Revenue,PSR & Sons Joiners & Building Contractors,0
South Ribble Borough Council,http://statistics.data.gov.uk/id/local-authority/30UE,COMP-Commercial and Property,Reactive Repair & Maintenance,2020,LABOUR,23/09/2022,0000481765,30.00,Revenue,PSR & Sons Joiners & Building Contractors,0
South Ribble Borough Council,http://statistics.data.gov.uk/id/local-authority/30UE,COMP-Commercial and Property,Reactive Repair & Maintenance,2020,REF: LEYLAND LEISURE CENTRE EXTERNAL AREAS KNEE RAILS as per NAME REDACTED Request ,23/09/2022,0000481870,650.00,Revenue,PSR & Sons Joiners & Building Contractors,0
South Ribble Borough Council,http://statistics.data.gov.uk/id/local-authority/30UE,COMP-Commercial and Property,Reactive Repair & Maintenance,2020,LABOUR,23/09/2022,0000481870,70.00,Revenue,PSR & Sons Joiners & Building Contractors,0
South Ribble Borough Council,http://statistics.data.gov.uk/id/local-authority/30UE,COMP-Commercial and Property,Reactive Repair & Maintenance,2020,Repairs to the staircase at craft unit 7 Worden Park,30/09/2022,0000482022,530.00,Revenue,PSR & Sons Joiners & Building Contractors,0
South Ribble Borough Council,http://statistics.data.gov.uk/id/local-authority/30UE,COMP-Commercial and Property,Reactive Repair & Maintenance,2020,REF: HURST GREEN LOCKS OUR REF LRS Q 6281 14 TH SEPTEMBER 2022 as per NAME REDACTED,30/09/2022,0000482023,220.00,Revenue,PSR & Sons Joiners & Building Contractors,0
South Ribble Borough Council,http://statistics.data.gov.uk/id/local-authority/30UE,COMP-Commercial and Property,Reactive Repair & Maintenance,2020,,30/09/2022,0000482023,30.00,Revenue,PSR & Sons Joiners & Building Contractors,0
South Ribble Borough Council,http://statistics.data.gov.uk/id/local-authority/30UE,COMU-Communities,Temporary Accommodation,5311,NAME REDACTED � Double En-Suite (Room 14) 1th 6th 4 nights.  10th- 12th - 7 nights,23/09/2022,0000481872,"13,400.00",Revenue,Purpleroomz,0
South Ribble Borough Council,http://statistics.data.gov.uk/id/local-authority/30UE,COMU-Communities,Capital Grant,C570,DFG WORK FOR ADAPTATION FOR LEVEL ACCESS SHOWER AT ADDRESS REDACTED  AS PER SRBC PLANS AND QUOTE SUPPLIED,30/09/2022,0000481930,"2,050.00",Revenue,QTS CONTRACTS LTD,0
South Ribble Borough Council,http://statistics.data.gov.uk/id/local-authority/30UE,COMP-Commercial and Property,Planned Annual Repair & Maintenance,2021,Hurst Grange 2022/2023 ,16/09/2022,0000481700,200.00,Revenue,RED ROSE BUILDING MAINTENANCE,0
South Ribble Borough Council,http://statistics.data.gov.uk/id/local-authority/30UE,COMP-Commercial and Property,Planned Annual Repair & Maintenance,2021,LABOUR,16/09/2022,0000481700,80.00,Revenue,RED ROSE BUILDING MAINTENANCE,0
South Ribble Borough Council,http://statistics.data.gov.uk/id/local-authority/30UE,CDIG-Customer and Digital,GM Refurbishment,4657,"LABOUR Further jetting and camera survery of pipe @ St. Paul`s park, Farington",23/09/2022,0000481726,500.00,Revenue,RED ROSE BUILDING MAINTENANCE,0
South Ribble Borough Council,http://statistics.data.gov.uk/id/local-authority/30UE,CDIG-Customer and Digital,GM Refurbishment,4657,MATERIALS,23/09/2022,0000481726,100.00,Revenue,RED ROSE BUILDING MAINTENANCE,0
South Ribble Borough Council,http://statistics.data.gov.uk/id/local-authority/30UE,COMP-Commercial and Property,Reactive Repair & Maintenance,2020,"labour Dig up flooring @ red frog photography (The Bothy, Worden park) due to leaking lead pipe.",23/09/2022,0000481831,400.00,Revenue,RED ROSE BUILDING MAINTENANCE,0
South Ribble Borough Council,http://statistics.data.gov.uk/id/local-authority/30UE,COMP-Commercial and Property,Reactive Repair & Maintenance,2020,MATERIALS,23/09/2022,0000481831,100.00,Revenue,RED ROSE BUILDING MAINTENANCE,0
South Ribble Borough Council,http://statistics.data.gov.uk/id/local-authority/30UE,COMP-Commercial and Property,Reactive Repair & Maintenance,2020,"Also, visit ADDRESS REDACTED to camera, jet and survey the drains. Following reports of water backing up and entering units",30/09/2022,0000482092,350.00,Revenue,RED ROSE BUILDING MAINTENANCE,0
South Ribble Borough Council,http://statistics.data.gov.uk/id/local-authority/30UE,COMU-Communities,Miscellaneous Expenses,4851,Red Rose Storage Units x 2,09/09/2022,0000481295,280.00,Revenue,Red Rose Self Storage Limited,0
South Ribble Borough Council,http://statistics.data.gov.uk/id/local-authority/30UE,COMU-Communities,Contributions to Other Bodies,4730,WW placement NAME REDACTED,09/09/2022,0000481464,400.00,Revenue,REDDY & CO,0
South Ribble Borough Council,http://statistics.data.gov.uk/id/local-authority/30UE,COMU-Communities,Temporary Accommodation,5311,TA placement - NAME REDACTED 29.07.22 - 18.08.22,23/09/2022,0000481465,"2,100.00",Revenue,REDDY & CO,0
South Ribble Borough Council,http://statistics.data.gov.uk/id/local-authority/30UE,COMP-Commercial and Property,Professional Fees,4510,"Supply of 2 coaches.Coach 1 - Priory Academy to West Park Drive, Blackpool, FY3 9HUCoach 2 - Civic Centre to West Park Drive, Blackpool, ",30/09/2022,0000481724,800.00,Revenue,Redline Travel Ltd,0
South Ribble Borough Council,http://statistics.data.gov.uk/id/local-authority/30UE,CDIG-Customer and Digital,Materials General,4040,2x Bin on Sensor 1007323 Bin No G0102 ,02/09/2022,0000481127,295.47,Revenue,Refuse Vehicle Parts,0
South Ribble Borough Council,http://statistics.data.gov.uk/id/local-authority/30UE,CDIG-Customer and Digital,Materials General,4040,2x Barrier Arm 5012241 Bin No G015 ,02/09/2022,0000481127,224.57,Revenue,Refuse Vehicle Parts,0
South Ribble Borough Council,http://statistics.data.gov.uk/id/local-authority/30UE,CDIG-Customer and Digital,Materials General,4040,4x Marker light red/white 5013400 Bin No G018,02/09/2022,0000481127,139.03,Revenue,Refuse Vehicle Parts,0
South Ribble Borough Council,http://statistics.data.gov.uk/id/local-authority/30UE,CDIG-Customer and Digital,Materials General,4040,1x Underun sensor 5044512 Bin No G024 ,02/09/2022,0000481127,243.00,Revenue,Refuse Vehicle Parts,0
South Ribble Borough Council,http://statistics.data.gov.uk/id/local-authority/30UE,CDIG-Customer and Digital,Materials General,4040,2x Upper Pin 5031821 Bin No G056 ,02/09/2022,0000481127,123.39,Revenue,Refuse Vehicle Parts,0
South Ribble Borough Council,http://statistics.data.gov.uk/id/local-authority/30UE,CDIG-Customer and Digital,Materials General,4040,1x Top Cover 5005781 Bin No G039 ,02/09/2022,0000481127,156.11,Revenue,Refuse Vehicle Parts,0
South Ribble Borough Council,http://statistics.data.gov.uk/id/local-authority/30UE,CDIG-Customer and Digital,Materials General,4040,1x Hyd Filter Kit 5025256 Bin No G027 ,02/09/2022,0000481127,256.30,Revenue,Refuse Vehicle Parts,0
South Ribble Borough Council,http://statistics.data.gov.uk/id/local-authority/30UE,CDIG-Customer and Digital,Materials General,4040,CARRIAGE & misc,02/09/2022,0000481127,98.50,Revenue,Refuse Vehicle Parts,0
South Ribble Borough Council,http://statistics.data.gov.uk/id/local-authority/30UE,CDIG-Customer and Digital,Materials General,4040,1 bin clamp plate YA19 NJZ JFC18895,16/09/2022,0000481559,308.01,Revenue,Refuse Vehicle Parts,0
South Ribble Borough Council,http://statistics.data.gov.uk/id/local-authority/30UE,COMP-Commercial and Property,Professional Fees,4510,Supply and install a wind out canopy for a Fiat Ducato L4 H3 van,16/09/2022,0000481561,"2,000.00",Revenue,Ribble Motorhomes,0
South Ribble Borough Council,http://statistics.data.gov.uk/id/local-authority/30UE,COMP-Commercial and Property,Publicity & Promotion,4842,Supply and install a 550mm electric step to the side sliding door,16/09/2022,0000481561,"2,141.65",Revenue,Ribble Motorhomes,0
South Ribble Borough Council,http://statistics.data.gov.uk/id/local-authority/30UE,CDIG-Customer and Digital,Photocopier Lease Rental,4036,11-aug-22,02/09/2022,0000481090,"9,773.63",Revenue,RICOH (UK) LTD,0
South Ribble Borough Council,http://statistics.data.gov.uk/id/local-authority/30UE,COMU-Communities,Professional Fees,4510,2 weeks of climbing wall for summer HAF programme Week 1 - 25th July - 28th July Week 2 - 8th August - 11th August,16/09/2022,0000481470,"2,080.00",Revenue,RiderEvolution Ltd,0
South Ribble Borough Council,http://statistics.data.gov.uk/id/local-authority/30UE,COMP-Commercial and Property,Cap Contract Payment,C230,Project Management Consultancy Support - Leyland Town Deal,30/09/2022,0000481622,"1,462.50",Revenue,RigDou Ltd,0
South Ribble Borough Council,http://statistics.data.gov.uk/id/local-authority/30UE,COMP-Commercial and Property,Cap Contract Payment,C230,"McKenzie Arms, Bamber Bridge (Housing Development)",30/09/2022,0000481701,"88,967.29",Revenue,RP Tyson Construction Ltd,0
South Ribble Borough Council,http://statistics.data.gov.uk/id/local-authority/30UE,CDIG-Customer and Digital,External Contractors Charges,4570,Soec repair to overhaul rear end of PJ62 UCG JFC18918,30/09/2022,0000481702,"7,985.74",Revenue,RTS Muni,0
South Ribble Borough Council,http://statistics.data.gov.uk/id/local-authority/30UE,CDIG-Customer and Digital,External Contractors Charges,4570,"Spec repair to ejector blade, MX04 YNL, JFC 18793",30/09/2022,0000481832,"4,227.71",Revenue,RTS Muni,0
South Ribble Borough Council,http://statistics.data.gov.uk/id/local-authority/30UE,CDIG-Customer and Digital,External Contractors Charges,4570,"1 x sycamore side of 7 Hall Lane, Penwortham � Urgent works",30/09/2022,0000481770,680.00,Revenue,RUSS ASPINALL T/A BEARDWOOD TREE SERVICE,0
South Ribble Borough Council,http://statistics.data.gov.uk/id/local-authority/30UE,COMP-Commercial and Property,Planned Annual Repair & Maintenance,2021,Annual Contract for 2 visits Sept 2022 and March 2023 at Leyland Market  Duct Cleaning at Caf� Noir as per Q11922 and 12022 ,30/09/2022,0000481979,345.00,Revenue,Rydel Hygiene Ltd,0
South Ribble Borough Council,http://statistics.data.gov.uk/id/local-authority/30UE,CDIG-Customer and Digital,External Contractors Charges,4570,Call out to repair NAME REDACTED power wash  PWR09RH JFC18745,30/09/2022,0000481908,445.12,Revenue,Saanro International Ltd,0
South Ribble Borough Council,http://statistics.data.gov.uk/id/local-authority/30UE,COMP-Commercial and Property,Amount Paid,0030,To supply continued Commercial Estates support for the Test Track mixed use development as per NAME REDACTED for 2 years ,23/09/2022,0000481703,650.00,Revenue,Sanderson Weatherall LLP,0
South Ribble Borough Council,http://statistics.data.gov.uk/id/local-authority/30UE,COMP-Commercial and Property,Amount Paid,0030,,23/09/2022,0000481703,9.00,Revenue,Sanderson Weatherall LLP,0
South Ribble Borough Council,http://statistics.data.gov.uk/id/local-authority/30UE,CDIG-Customer and Digital,Materials General,4040,"1x suction tube, GL70 SVY, JFC18624",02/09/2022,0000480980,318.86,Revenue,Scarab Sweepers Ltd,0
South Ribble Borough Council,http://statistics.data.gov.uk/id/local-authority/30UE,COMP-Commercial and Property,Cap Contract Payment,C230,RIBA 4 - Technical Design (2nd stage tender negotiations and contract award) - Jubilee Gardens Extra Care Project,30/09/2022,0000481568,"3,921.00",Revenue,SDA Consulting LLP,0
South Ribble Borough Council,http://statistics.data.gov.uk/id/local-authority/30UE,COMP-Commercial and Property,Cap Contract Payment,C230,RIBA 4 - Technical Design stage (2nd stage tender negotiations and contract award) � Service Manager Role for PCSA,30/09/2022,0000481569,"1,390.00",Revenue,SDA Consulting LLP,0
South Ribble Borough Council,http://statistics.data.gov.uk/id/local-authority/30UE,COMP-Commercial and Property,South Ribble Leisure Ltd Costs,5600,qtr3,23/09/2022,0000481551,"145,807.00",Revenue,South Ribble Leisure Ltd,0
South Ribble Borough Council,http://statistics.data.gov.uk/id/local-authority/30UE,COMP-Commercial and Property,South Ribble Leisure Ltd Costs,5600,qtr 4,30/09/2022,0000482047,"145,807.00",Revenue,South Ribble Leisure Ltd,0
South Ribble Borough Council,http://statistics.data.gov.uk/id/local-authority/30UE,CDIG-Customer and Digital,External Contractors Charges,4570,Spec Repair VA19 KOX JFC 18652,02/09/2022,0000480830,"1,277.50",Revenue,Southfield RCV Services Limited,0
South Ribble Borough Council,http://statistics.data.gov.uk/id/local-authority/30UE,CDIG-Customer and Digital,External Contractors Charges,4570,Spec Repair VK20 NVV JFC 18772,30/09/2022,0000481907,"1,489.60",Revenue,Southfield RCV Services Limited,0
South Ribble Borough Council,http://statistics.data.gov.uk/id/local-authority/30UE,CDIG-Customer and Digital,Materials General,4040,10 Outer Pivot Bars BIN1252,02/09/2022,0000480982,195.50,Revenue,SPALDINGS,0
South Ribble Borough Council,http://statistics.data.gov.uk/id/local-authority/30UE,CDIG-Customer and Digital,Materials General,4040,5 Centre Pivot Bars BIN1251,02/09/2022,0000480982,132.50,Revenue,SPALDINGS,0
South Ribble Borough Council,http://statistics.data.gov.uk/id/local-authority/30UE,CDIG-Customer and Digital,Materials General,4040,4 Outer Deck Rubbers BIN1049,02/09/2022,0000480982,71.80,Revenue,SPALDINGS,0
South Ribble Borough Council,http://statistics.data.gov.uk/id/local-authority/30UE,CDIG-Customer and Digital,Materials General,4040,5 Scraper Wires BIN1060,02/09/2022,0000480982,53.50,Revenue,SPALDINGS,0
South Ribble Borough Council,http://statistics.data.gov.uk/id/local-authority/30UE,COMP-Commercial and Property,Gas,2304,1/6 to 1/9/22,16/09/2022,0000481532,"1,578.24",Revenue,SSE,0
South Ribble Borough Council,http://statistics.data.gov.uk/id/local-authority/30UE,COMP-Commercial and Property,Electricity,2303,2/5 to 1/6/22,02/09/2022,0000481230,307.96,Revenue,SSE,0
South Ribble Borough Council,http://statistics.data.gov.uk/id/local-authority/30UE,COMU-Communities,Room Hire,2402,Contribution to SMCC Youth Day,02/09/2022,0000481197,500.00,Revenue,St Mary`s Community Centre,0
South Ribble Borough Council,http://statistics.data.gov.uk/id/local-authority/30UE,CDIG-Customer and Digital,Diesel Fuel,3132,16000ltrs diesel into the feeder tank,02/09/2022,0000481130,"23,493.71",Revenue,Standard Fuel Oils LtdMain,0
South Ribble Borough Council,http://statistics.data.gov.uk/id/local-authority/30UE,CDIG-Customer and Digital,Diesel Fuel,3132,2000ltrs of gas oil ,02/09/2022,0000481165,"1,956.80",Revenue,Standard Fuel Oils LtdMain,0
South Ribble Borough Council,http://statistics.data.gov.uk/id/local-authority/30UE,CDIG-Customer and Digital,Diesel Fuel,3132,16000 ltrs Diesel,16/09/2022,0000481420,"23,847.89",Revenue,Standard Fuel Oils LtdMain,0
South Ribble Borough Council,http://statistics.data.gov.uk/id/local-authority/30UE,CDIG-Customer and Digital,Diesel Fuel,3132,"2,000 Litres of Gas Oil ",23/09/2022,0000481767,"2,023.40",Revenue,Standard Fuel Oils LtdMain,0
South Ribble Borough Council,http://statistics.data.gov.uk/id/local-authority/30UE,COMP-Commercial and Property,Professional Fees,4510,"2.5 Days Filming services for Active Travel Programme 4 Days Editing, animation and graphic design",09/09/2022,0000481397,"2,975.00",Revenue,STANLEY ROAD FILM AND MEDIA LTD,0
South Ribble Borough Council,http://statistics.data.gov.uk/id/local-authority/30UE,PDEV-Planning and Development,Legal,4821,Penwortham Residential Site - advice in respect of TPO�s- Planning,16/09/2022,0000481192,900.00,Revenue,STEPHANIE HALL,0
South Ribble Borough Council,http://statistics.data.gov.uk/id/local-authority/30UE,COMP-Commercial and Property,External Catering Charges,4575,15 lunch boxes for licensing on 19th may 22 ,02/09/2022,0000480415,153.78,Revenue,Style Catering,0
South Ribble Borough Council,http://statistics.data.gov.uk/id/local-authority/30UE,COMP-Commercial and Property,External Catering Charges,4575,20 lunch boxes for governance on 23 May 22 ,02/09/2022,0000480415,139.80,Revenue,Style Catering,0
South Ribble Borough Council,http://statistics.data.gov.uk/id/local-authority/30UE,COMP-Commercial and Property,External Catering Charges,4575,25 lunch boxes for planning training on 25 may 22 ,02/09/2022,0000480415,149.75,Revenue,Style Catering,0
South Ribble Borough Council,http://statistics.data.gov.uk/id/local-authority/30UE,COMP-Commercial and Property,External Catering Charges,4575,Buffet boxes Planning training 14th june for 18 people Buffet boxes planning committee 16th June for 24 people,02/09/2022,0000480418,251.58,Revenue,Style Catering,0
South Ribble Borough Council,http://statistics.data.gov.uk/id/local-authority/30UE,COMP-Commercial and Property,External Catering Charges,4575,"7th July, planning for 24 13th July Cabinet for 20 20th July Full Council for 59 25th July planning for 24 28th July planning for 24 ",02/09/2022,0000480902,910.48,Revenue,Style Catering,0
South Ribble Borough Council,http://statistics.data.gov.uk/id/local-authority/30UE,COMU-Communities,External Catering Charges,4575,Lunches for HAF camps for 25 July to 11 August,09/09/2022,0000481271,"10,150.00",Revenue,Style Catering,0
South Ribble Borough Council,http://statistics.data.gov.uk/id/local-authority/30UE,COMU-Communities,Miscellaneous Expenses,4851,150 packed lunches for Farington Fun Day on 19 August ,09/09/2022,0000481340,750.00,Revenue,Style Catering,0
South Ribble Borough Council,http://statistics.data.gov.uk/id/local-authority/30UE,COMU-Communities,Publicity & Promotion,4842,To supply catering for the Cost of Living Conference,16/09/2022,0000481342,419.40,Revenue,Style Catering,0
South Ribble Borough Council,http://statistics.data.gov.uk/id/local-authority/30UE,COMU-Communities,External Catering Charges,4575,Lunches for HAF camps - 15-26 August,23/09/2022,0000481731,"2,800.00",Revenue,Style Catering,0
South Ribble Borough Council,http://statistics.data.gov.uk/id/local-authority/30UE,COMP-Commercial and Property,Planned Annual Repair & Maintenance,2021,Annual Contract for 2022/2023 for the moveable walls x 2  Moveo  -  2 service visits per year  in the Civic Suite ,16/09/2022,0000481714,500.00,Revenue,STYLE MOVEABLE PARTITION SPECIALISTS,0
South Ribble Borough Council,http://statistics.data.gov.uk/id/local-authority/30UE,POLY-Policy,Short Course,1402,Tree Safe Works using Mobile Elevated Platforms training for NAMES REDACTED,30/09/2022,0000482005,360.00,Revenue,Swat Access Ltd,0
South Ribble Borough Council,http://statistics.data.gov.uk/id/local-authority/30UE,CDIG-Customer and Digital,Computer Maintenance,4211,Upgrade to brake test software,23/09/2022,0000481836,"1,057.54",Revenue,Tecalemit Garage Equipment Company Limited,0
South Ribble Borough Council,http://statistics.data.gov.uk/id/local-authority/30UE,CDIG-Customer and Digital,Maintenance & Repair,4013,CCTV Maintenance,02/09/2022,0000481284,292.50,Revenue,Technology Solutions,0
South Ribble Borough Council,http://statistics.data.gov.uk/id/local-authority/30UE,COMP-Commercial and Property,Professional Fees,4510,Tree hives upgrade and 1 year�s annual maintenance as per NAME REDACTED,23/09/2022,0000481501,450.00,Revenue,The Bee centre,0
South Ribble Borough Council,http://statistics.data.gov.uk/id/local-authority/30UE,COMP-Commercial and Property,Cap Contract Payment,C230,Update of Arbo Impact Assesssment (AIA) - West Paddock,30/09/2022,0000481497,285.00,Revenue,The Environment Partnership (TEP) Limited,0
South Ribble Borough Council,http://statistics.data.gov.uk/id/local-authority/30UE,CDIG-Customer and Digital,Network and Security,4247,"Resilient Internet Route 2: South Ribble Borough Council Civic Centre, PR25 1DH",16/09/2022,0000481400,"4,211.04",Revenue,The Networking People (TNP) Ltd,0
South Ribble Borough Council,http://statistics.data.gov.uk/id/local-authority/30UE,POLY-Policy,Occupational Health,1408,Counselling sessions for staff - Invoice 258,16/09/2022,0000481166,360.00,Revenue,The Wellbeing Centre (Rachel Dickinson),0
South Ribble Borough Council,http://statistics.data.gov.uk/id/local-authority/30UE,COMP-Commercial and Property,Reactive Repair & Maintenance,2020,Please provide skip as per NAME REDACTED for the Civic Centre until further notice,16/09/2022,0000481590,313.50,Revenue,Think Aggregates & Recycling,0
South Ribble Borough Council,http://statistics.data.gov.uk/id/local-authority/30UE,POLY-Policy,Legal,4821,LEGAL ADVICE IN RELATION TO S21F0161 / RILEY,16/09/2022,0000481618,350.00,Revenue,THOMPSONS SOLICITORS,0
South Ribble Borough Council,http://statistics.data.gov.uk/id/local-authority/30UE,CDIG-Customer and Digital,External Contractors Charges,4570,TR243,09/09/2022,0000481327,641.52,Revenue,Tomlinson Road Tyres,0
South Ribble Borough Council,http://statistics.data.gov.uk/id/local-authority/30UE,COMP-Commercial and Property,Electricity,2303,1/8 to 31/8/22,16/09/2022,0000481525,"1,490.50",Revenue,Total Gas & power Ltd,0
South Ribble Borough Council,http://statistics.data.gov.uk/id/local-authority/30UE,COMP-Commercial and Property,Gas,2304,31/7 to 31/8/22,16/09/2022,0000481623,763.80,Revenue,Total Gas & power Ltd,0
South Ribble Borough Council,http://statistics.data.gov.uk/id/local-authority/30UE,COMP-Commercial and Property,Electricity,2303,1/8 to 31/8/22,16/09/2022,0000481625,"2,689.55",Revenue,Total Gas & power Ltd,0
South Ribble Borough Council,http://statistics.data.gov.uk/id/local-authority/30UE,COMP-Commercial and Property,Electricity,2303,1/8 to 31/8/22,16/09/2022,0000481627,"2,469.43",Revenue,Total Gas & power Ltd,0
South Ribble Borough Council,http://statistics.data.gov.uk/id/local-authority/30UE,COMU-Communities,Cap Expenditure Other,C750,2021-22 DOUBLE GLAZING SCHEME FUNDS AS PER TENDER SPECIFICATIONS,09/09/2022,0000481496,772.00,Revenue,TRADE WINDOWS & CONSERVATORIES,0
South Ribble Borough Council,http://statistics.data.gov.uk/id/local-authority/30UE,COMU-Communities,Cap Expenditure Other,C750,2021-22 DOUBLE GLAZING SCHEME FUNDS AS PER TENDER SPECIFICATIONS,09/09/2022,0000481507,"1,419.50",Revenue,TRADE WINDOWS & CONSERVATORIES,0
South Ribble Borough Council,http://statistics.data.gov.uk/id/local-authority/30UE,COMU-Communities,Cap Expenditure Other,C750,2021-22 DOUBLE GLAZING SCHEME FUNDS AS PER TENDER SPECIFICATIONS,09/09/2022,0000481508,"1,045.00",Revenue,TRADE WINDOWS & CONSERVATORIES,0
South Ribble Borough Council,http://statistics.data.gov.uk/id/local-authority/30UE,COMU-Communities,Cap Expenditure Other,C750,2021-22 DOUBLE GLAZING SCHEME FUNDS AS PER TENDER SPECIFICATIONS,09/09/2022,0000481509,772.00,Revenue,TRADE WINDOWS & CONSERVATORIES,0
South Ribble Borough Council,http://statistics.data.gov.uk/id/local-authority/30UE,COMU-Communities,Cap Expenditure Other,C750,2021-22 DOUBLE GLAZING SCHEME FUNDS AS PER TENDER SPECIFICATIONS,09/09/2022,0000481510,"2,641.50",Revenue,TRADE WINDOWS & CONSERVATORIES,0
South Ribble Borough Council,http://statistics.data.gov.uk/id/local-authority/30UE,CDIG-Customer and Digital,External Contractors Charges,4570,Fell all willow and ash trees within falling distance of the highway as identified on the plan edged in red,16/09/2022,0000481222,"7,800.00",Revenue,Trunks Tree Care Ltd,0
South Ribble Borough Council,http://statistics.data.gov.uk/id/local-authority/30UE,POLY-Policy,UK Healthcare,1710,1 sept 2022,16/09/2022,0000481380,"1,715.80",Revenue,UK healthcare (BDHSC),0
South Ribble Borough Council,http://statistics.data.gov.uk/id/local-authority/30UE,POLY-Policy,Professional Fees,4510,NAME REDACTED REDACTED at Music In The Park 2023,02/09/2022,0000481182,"2,500.00",Revenue,UK Media Events Ltd,0
South Ribble Borough Council,http://statistics.data.gov.uk/id/local-authority/30UE,POLY-Policy,Professional Fees,4510,NAMES REDACTED playback set at Music In The Park 2023 Performance Fee Only,02/09/2022,0000481183,"5,000.00",Revenue,UK Media Events Ltd,0
South Ribble Borough Council,http://statistics.data.gov.uk/id/local-authority/30UE,POLY-Policy,Professional Fees,4510,NAME REDACTED Full Band set at Music In The Park 2023,02/09/2022,0000481184,"4,250.00",Revenue,UK Media Events Ltd,0
South Ribble Borough Council,http://statistics.data.gov.uk/id/local-authority/30UE,POLY-Policy,Professional Fees,4510,NAME REDACTED Full band set at Music In The Park 2023,02/09/2022,0000481185,"3,500.00",Revenue,UK Media Events Ltd,0
South Ribble Borough Council,http://statistics.data.gov.uk/id/local-authority/30UE,POLY-Policy,Professional Fees,4510,NAME REDACTED With Full Band at Music In,02/09/2022,0000481282,"21,250.00",Revenue,UK Media Events Ltd,0
South Ribble Borough Council,http://statistics.data.gov.uk/id/local-authority/30UE,POLY-Policy,Professional Fees,4510,NAME REDACTED With Full Band at Music In The Park 2023,09/09/2022,0000481344,"13,500.00",Revenue,UK Media Events Ltd,0
South Ribble Borough Council,http://statistics.data.gov.uk/id/local-authority/30UE,POLY-Policy,Professional Fees,4510,NAME REDACTED With Full Band at Music In The Park 2023,09/09/2022,0000481345,"8,250.00",Revenue,UK Media Events Ltd,0
South Ribble Borough Council,http://statistics.data.gov.uk/id/local-authority/30UE,POLY-Policy,Professional Fees,4510,NAME REDACTED Full band set at Music In The Park 2023,23/09/2022,0000481801,"1,250.00",Revenue,UK Media Events Ltd,0
South Ribble Borough Council,http://statistics.data.gov.uk/id/local-authority/30UE,CDIG-Customer and Digital,External Contractors Charges,4570,Specialist clean highway signs in south ribble area,30/09/2022,0000482025,"1,606.80",Revenue,ULTRA CLEAN CONSERVATORIES,0
South Ribble Borough Council,http://statistics.data.gov.uk/id/local-authority/30UE,COMP-Commercial and Property,External Catering Charges,4575,4 cases of fair trade coffee beans 4 cases of milkfresh gold skimmed,23/09/2022,0000481768,531.60,Revenue,VENDING ENTERPRISES,0
South Ribble Borough Council,http://statistics.data.gov.uk/id/local-authority/30UE,GOVE-Governance,Agency Staff,1121,COST OF ENGAGING LOCUM SOLICITOR NAME REDACTED - CONTRACT BEGINS 6 MAY 2022,23/09/2022,0000481210,"1,885.28",Revenue,VENN GROUP LTD,0
South Ribble Borough Council,http://statistics.data.gov.uk/id/local-authority/30UE,GOVE-Governance,Agency Staff,1121,COST OF ENGAGING LOCUM SOLICITOR NAME REDACTED - CONTRACT BEGINS 6 MAY 2022,23/09/2022,0000481224,"1,708.88",Revenue,VENN GROUP LTD,0
South Ribble Borough Council,http://statistics.data.gov.uk/id/local-authority/30UE,GOVE-Governance,Agency Staff,1121,COST OF ENGAGING LOCUM SOLICITOR NAME REDACTED - CONTRACT BEGINS 6 MAY 2022,23/09/2022,0000481718,"1,977.68",Revenue,VENN GROUP LTD,0
South Ribble Borough Council,http://statistics.data.gov.uk/id/local-authority/30UE,GOVE-Governance,Agency Staff,1121,COST OF ENGAGING LOCUM SOLICITOR NAME REDACTED - CONTRACT BEGINS 6 MAY 2022,23/09/2022,0000481769,"2,030.18",Revenue,VENN GROUP LTD,0
South Ribble Borough Council,http://statistics.data.gov.uk/id/local-authority/30UE,PDEV-Planning and Development,Agency Staff,1121,Consultant Planning Officer NAME REDACTED - 6 month contract to provide additional support to Development Management.,16/09/2022,0000481011,"2,008.13",Revenue,Vivid Resourcing,0
South Ribble Borough Council,http://statistics.data.gov.uk/id/local-authority/30UE,COMP-Commercial and Property,Agency Staff,1121,cancelled with credit 3973,30/09/2022,0000481274,950.00,Revenue,Vivid Resourcing,0
South Ribble Borough Council,http://statistics.data.gov.uk/id/local-authority/30UE,PDEV-Planning and Development,Agency Staff,1121,Consultant Planning Officer NAME REDACTED - 6 month contract to provide additional support to Development Management.,23/09/2022,0000481444,"1,995.00",Revenue,Vivid Resourcing,0
South Ribble Borough Council,http://statistics.data.gov.uk/id/local-authority/30UE,PDEV-Planning and Development,Agency Staff,1121,Consultant Planning Officer NAME REDACTED - 6 month contract to provide additional support to Development Management.,23/09/2022,0000481446,"3,976.88",Revenue,Vivid Resourcing,0
South Ribble Borough Council,http://statistics.data.gov.uk/id/local-authority/30UE,COMP-Commercial and Property,Agency Staff,1121,cancelled with credit 3972,30/09/2022,0000481503,950.00,Revenue,Vivid Resourcing,0
South Ribble Borough Council,http://statistics.data.gov.uk/id/local-authority/30UE,COMP-Commercial and Property,Agency Staff,1121,To offer an interim Estates surveyor position to NAME REDACTED to provide professional surveying services for the duration of the contract,30/09/2022,0000481720,"3,050.00",Revenue,Vivid Resourcing,0
South Ribble Borough Council,http://statistics.data.gov.uk/id/local-authority/30UE,COMP-Commercial and Property,Agency Staff,1121,To offer an interim Estates surveyor position to NAME REDACTED to provide professional surveying services for the duration of the contract,30/09/2022,0000481773,912.50,Revenue,Vivid Resourcing,0
South Ribble Borough Council,http://statistics.data.gov.uk/id/local-authority/30UE,COMP-Commercial and Property,Water Charges(Metered),2511,31/3/21 to 31/3/23,09/09/2022,0000481378,"19,411.76",Revenue,WATER PLUS,0
South Ribble Borough Council,http://statistics.data.gov.uk/id/local-authority/30UE,COMP-Commercial and Property,Water Charges(Metered),2511,19/08/2022 - 18/09/2022,30/09/2022,0000481968,729.07,Revenue,WaterPlus,0
South Ribble Borough Council,http://statistics.data.gov.uk/id/local-authority/30UE,COMP-Commercial and Property,Water Charges(Metered),2511,14/03/2022 - 01/04/2022,30/09/2022,0000481983,"2,561.99",Revenue,WaterPlus,0
South Ribble Borough Council,http://statistics.data.gov.uk/id/local-authority/30UE,COMP-Commercial and Property,Water Charges(Metered),2511,1/4 to 31/3/22,30/09/2022,0000481998,"2,013.78",Revenue,WaterPlus,0
South Ribble Borough Council,http://statistics.data.gov.uk/id/local-authority/30UE,GOVE-Governance,Legal,4821,PROFESSIONAL SERVICES WITH REGARD TO THE TEST TRACK - NAME REDACTED- W15581-5,16/09/2022,0000481394,"2,818.80",Revenue,WEIGHTMANS LLP,0
South Ribble Borough Council,http://statistics.data.gov.uk/id/local-authority/30UE,COMU-Communities,Professional Fees,4510,Use of the venue for summer HAF. ,23/09/2022,0000481722,350.00,Revenue,Wellfield Church,0
South Ribble Borough Council,http://statistics.data.gov.uk/id/local-authority/30UE,COMP-Commercial and Property,Planned Annual Repair & Maintenance,2021,Continuation of hire of unit at Penwortham Holme as per NAME REDACTED request for 2022/2023,16/09/2022,0000481599,434.00,Revenue,Wernick Hire Ltd,0
South Ribble Borough Council,http://statistics.data.gov.uk/id/local-authority/30UE,COMP-Commercial and Property,Planned Annual Repair & Maintenance,2021,Continuation of hire of unit at Penwortham Holme as per NAME REDACTED request for 2022/2023,30/09/2022,0000481960,420.00,Revenue,Wernick Hire Ltd,0
South Ribble Borough Council,http://statistics.data.gov.uk/id/local-authority/30UE,CDIG-Customer and Digital,Franked Post,4292,Ongoing mail delivery costs at South Ribble,02/09/2022,0000481186,744.67,Revenue,WHISTL  UK LTD,0
South Ribble Borough Council,http://statistics.data.gov.uk/id/local-authority/30UE,CDIG-Customer and Digital,Franked Post,4292,Ongoing mail delivery costs at South Ribble,16/09/2022,0000481331,"1,051.65",Revenue,WHISTL  UK LTD,0
South Ribble Borough Council,http://statistics.data.gov.uk/id/local-authority/30UE,CDIG-Customer and Digital,Franked Post,4292,Ongoing mail delivery costs at South Ribble,16/09/2022,0000481543,502.95,Revenue,WHISTL  UK LTD,0
South Ribble Borough Council,http://statistics.data.gov.uk/id/local-authority/30UE,CDIG-Customer and Digital,Franked Post,4292,Ongoing mail delivery costs at South Ribble,30/09/2022,0000481634,361.42,Revenue,WHISTL  UK LTD,0
South Ribble Borough Council,http://statistics.data.gov.uk/id/local-authority/30UE,CDIG-Customer and Digital,Franked Post,4292,Ongoing mail delivery costs at South Ribble,30/09/2022,0000481808,295.86,Revenue,WHISTL  UK LTD,0
South Ribble Borough Council,http://statistics.data.gov.uk/id/local-authority/30UE,CDIG-Customer and Digital,Franked Post,4292,,30/09/2022,0000481808,2.00,Revenue,WHISTL  UK LTD,0
South Ribble Borough Council,http://statistics.data.gov.uk/id/local-authority/30UE,CDIG-Customer and Digital,Franked Post,4292,Ongoing mail delivery costs at South Ribble,30/09/2022,0000481818,547.68,Revenue,WHISTL  UK LTD,0
